Workbook

Sheet CoverSheet
A3: Gas Pipeline Businesses
A4: Price-Quality Regulation 1 October 2022 Reset
A5: Default Price Path Financial Model
A17: Published 31 May 2022

Sheet Description
A1: Description
A3: General Description
B4: This is the financial model prepared by the Commission to calculate starting prices for those GPBs (suppliers) that are subject to default price quality regulation as from 1 October 2022.
B5: Data
B6: Are based on 2021 Information Dislosures.
B7: Notes:
B8: 1 | C8: Financial quantities in this model are expressed in NZD'000. All values are nominal, except for present values which are defined where they are used.
B9: 2 | C9: All data used by the model are entered in the 'Input' worksheet.
B10: 3 | C10: The 'Output' worksheet uses Excel's data table facility to display the calculated results for all suppliers.
B11: 4 | C11: The model shows the calculation of the outputs for the supplier selected in the 'Inputs' worksheet dropdown list in cell C3.
B12: 5 | C12: For each supplier, the calculated results are detailed in the Outputs worksheet.
B13: 6 | C13: The applicable X factor used in the calculations is the industry-wide X factor unless an alternative X factor is entered in the input worksheet in respect of that supplier. In practice, no supplier has an alternative X factor specified.
B14: 7 | C14: A fill colour is used in cells containing a formula that links to another worksheet.
B15: 8 | C15: A right hand orange border is applied to cells containing a formula that differs from neighbouring cell on the right.
B16: 9 | C16: A red font is applied to input cells to the workbook, including links to other workbooks.
A18: Economic Asset Stranding Mitigation
B19: a | C19: The sheet Output contains section which derives the Final ADF from blended ADF, which is copied from Asset Stranding workbook as values.
B20: b | C20: Run the Macro which will derive the Final rounded X factor and again back solve for a Final ADF.
B21: c | C21: The Model is then run with these Final Values

Sheet Table of Contents
A1: Table of Contents
B4: Sheet Name | C4: Link
B5: Inputs | C5: Inputs
B6: GPB data | C6: Inputs for the selected supplier
B7: Timing | C7: Timing
C8: Inputs
C9: Calculations
C10: Outputs
B11: RAB | C11: Regulatory asset base
C12: Inputs
C13: Calculations
C14: Outputs
B15: Tax | C15: Tax calculations
C16: Inputs
C17: Calculations
C18: Outputs
B19: BBAR | C19: Building blocks allowable revenue
C20: Inputs
C21: Calculations
C22: Outputs
B23: Rev | C23: Revenue growth index
C24: Inputs
C25: Calculations
C26: Outputs
B27: MAR | C27: Maximum allowable revenue
C28: Inputs
C29: Calculations
C30: Outputs
B31: Outputs | C31: DPP reset output table
C32: Outputs
B33: Outputs to Chartbook | C33: Outputs to chartbook
C34: Reasons Paper Charts
C35: Chapter 4 tables
C36: Transmission Determination Tables & Values
C37: Distribution Determination Tables & Values
B38: Notes | C38: Model notes

Sheet Inputs
A1: Inputs | B1: Values, not time series | C1: Early base year | D1: Standard base year | E1: Gap year | F1: 1st BBAR year | G1: 2nd BBAR year | H1: 3rd BBAR year | I1: 4th BBAR year | J1: 5th BBAR year
A2: All input data is entered into this worksheet. | B2: Exceptions to the principle that an inputs sheet should not include anything other than inputs have this grey background.
A3: Name of supplier currently chosen as the focus of this workbook | C3: Vector
A4: Supplier number (inferred from chosen name above) | C4: =HLOOKUP(GPB_name,Inputs!$B$22:$G$23,2,FALSE) -> 3
A5: Supplier number (from Output sheet) | C5: =Outputs!B22 -> 3
A6: Inputs that are the same for all suppliers
A7: BBAR year ending in calendar year: | C7: =D7-1 -> 2020 | D7: =E7-1 -> 2021 | E7: =F7-1 -> 2022 | F7: 2023 | G7: =F7+1 -> 2024 | H7: =G7+1 -> 2025 | I7: =H7+1 -> 2026 | J7: =I7+1 -> 2027
A8: Forecast changes in CPI used for revaluations, June year-ends | D8: =[1]Output!G8 -> 0.03342884432 | E8: =[1]Output!H8 -> 0.063 | F8: =[1]Output!I8 -> 0.026 | G8: =[1]Output!J8 -> 0.023 | H8: =[1]Output!K8 -> 0.02 | I8: =[1]Output!L8 -> 0.02 | J8: =[1]Output!M8 -> 0.02
A9: Forecast changes in CPI used for revaluations, September year-ends | D9: =[1]Output!G9 -> 0.04933586338 | E9: =[1]Output!H9 -> 0.05 | F9: =[1]Output!I9 -> 0.025 | G9: =[1]Output!J9 -> 0.022 | H9: =[1]Output!K9 -> 0.02 | I9: =[1]Output!L9 -> 0.02 | J9: =[1]Output!M9 -> 0.02
A10: Forecast changes in the CPI element of the price path for GDB | D10: =[1]Output!G10 -> 0.01882640587 | E10: =[1]Output!H10 -> 0.01463882889 | F10: =[1]Output!I10 -> 0.05214947966 | G10: =[1]Output!J10 -> 0.04628530323 | H10: =[1]Output!K10 -> 0.02474373522 | I10: =[1]Output!L10 -> 0.02149215402 | J10: =[1]Output!M10 -> 0.02
A11: Forecast changes in the CPI element of the price path for GTB | D11: =[1]Output!G11 -> 0.02811532047 | E11: =[1]Output!H11 -> 0.05954901506 | F11: =[1]Output!I11 -> 0.03092122799 | G11: =[1]Output!J11 -> 0.02324453846 | H11: =[1]Output!K11 -> 0.02024799149 | I11: =[1]Output!L11 -> 0.02 | J11: =[1]Output!M11 -> 0.02
A12: Corporate tax rate | C12: 0.28 | D12: 0.28 | E12: 0.28 | F12: 0.28 | G12: 0.28 | H12: 0.28 | I12: 0.28 | J12: 0.28
A13: Days from mid-year to year-end | B13: 182
A14: Days from revenue date to year-end | B14: 148
A15: Day prior to start of the regulatory period | B15: 2022-09-30
A16: Vanilla WACC (67th percentile) | B16: 0.0614
A17: Cost of debt | B17: 0.0404
A18: Leverage | B18: 0.42
A19: Remaining asset life for additional assets before adjustment | B19: 45
A20: Industry-wide X factor | B20: 0
A21: Inputs that are specific to individual suppliers | I21: Selected supplier #: | J21: =Outputs!B22 -> 3 | K21: Value for selected supplier
A22: Name | B22: GasNet | C22: Powerco | D22: Vector | E22: First Gas distribution | F22: First Gas transmission | K22: =INDEX(B22:F22,,$J$21) -> Vector
A23: Supplier number | B23: 1 | C23: 2 | D23: 3 | E23: 4 | F23: 5
A24: Early base year adopted? | B24: FALSE | C24: FALSE | D24: FALSE | E24: FALSE | F24: FALSE | K24: =INDEX(B24:F24,,$J$21) -> FALSE
A25: Last day in the standard base year | B25: 2021-06-30 | C25: 2021-09-30 | D25: 2021-06-30 | E25: 2021-09-30 | F25: 2021-09-30 | K25: =INDEX(B25:F25,,$J$21) -> 2021-06-30
A26: Tax payable (payable) or deferred tax (deferred) | B26: deferred | C26: deferred | D26: deferred | E26: deferred | F26: payable | K26: deferred
A27: Total revenue cap (TRC) or weighted avg price cap (WAPC) | B27: WAPC | C27: WAPC | D27: WAPC | E27: WAPC | F27: TRC_FQ | K27: WAPC
A28: Adjustment factor (for accelerated depreciation) existing | B28: =ADF_GasNet -> 0.8148885984 | C28: =ADF_PowerCo -> 0.8389614383 | D28: =ADF_Vector -> 0.6593505936 | E28: =ADF_FGD -> 0.6934935207 | F28: =ADF_FGT -> 0.7507305755 | K28: 0.6593505936
A29: Adjustment factor (for accelerated depreciation) additional | B29: =B28 -> 0.8148885984 | C29: =C28 -> 0.8389614383 | D29: 0.6593505936 | E29: 0.6934935207 | F29: 0.7507305755 | K29: 0.6593505936
A30: Initial conditions
A31: Opening RAB | B31: =[2]Output!B5 -> 24056 | C31: =[2]Output!C5 -> 388863.0303 | D31: =[2]Output!D5 -> 434256 | E31: =[2]Output!E5 -> 174405.1661 | F31: =[2]Output!F5 -> 849688.0929 | K31: =INDEX(B31:F31,,$J$21) -> 434256
A32: Total depreciation | B32: =[2]Output!B6 -> 890 | C32: =[2]Output!C6 -> 16520.80123 | D32: =[2]Output!D6 -> 12684 | E32: =[2]Output!E6 -> 6273.133953 | F32: =[2]Output!F6 -> 34267.21374 | K32: =INDEX(B32:F32,,$J$21) -> 12684
A33: Closing RAB | B33: =[2]Output!B7 -> 24943 | C33: =[2]Output!C7 -> 406139 | D33: =[2]Output!D7 -> 451131 | E33: =[2]Output!E7 -> 181908.4666 | F33: =[2]Output!F7 -> 874464.5955 | K33: 451131
A34: Opening RAB excluding revaluations | B34: =[2]Output!B8 -> 21153 | C34: =[2]Output!C8 -> 347153.9267 | D34: =[2]Output!D8 -> 387877 | E34: =[2]Output!E8 -> 159463.3196 | F34: =[2]Output!F8 -> 0 | K34: 387877
A35: Adjusted depreciation | B35: =[2]Output!B9 -> 756 | C35: =[2]Output!C9 -> 14618.99278 | D35: =[2]Output!D9 -> 11347 | E35: =[2]Output!E9 -> 5666.21179 | F35: =[2]Output!F9 -> 0 | K35: 11347
A36: Tax depreciation | B36: =[2]Output!B10 -> 668 | C36: =[2]Output!C10 -> 19094.19586 | D36: =[2]Output!D10 -> 18496 | E36: =[2]Output!E10 -> 8024.564544 | F36: =[2]Output!F10 -> 22468.73376 | K36: 18496
A37: Opening regulatory tax asset value | B37: =[2]Output!B11 -> 6332 | C37: =[2]Output!C11 -> 174476.9623 | D37: =[2]Output!D11 -> 178920 | E37: =[2]Output!E11 -> 71182.16614 | F37: =[2]Output!F11 -> 205340.1339 | K37: 178920
A38: Amortisation of initial differences in asset values | B38: =[2]Output!B12 -> 475.3853565 | C38: =[2]Output!C12 -> 2286.643824 | D38: =[2]Output!D12 -> 2452.34375 | E38: =[2]Output!E12 -> 1682.628571 | F38: =[2]Output!F12 -> 0 | K38: 2452.34375
A39: Term credit spread differential allowance | B39: =[2]Output!B13 -> 0 | C39: =[2]Output!C13 -> 415.3212016 | D39: =[2]Output!D13 -> 394.7103671 | E39: =[2]Output!E13 -> 262.7097852 | F39: =[2]Output!F13 -> 1271.216537 | K39: 394.7103671
A40: Opening deferred tax balance | B40: =[2]Output!B14 -> -1402 | C40: =[2]Output!C14 -> -30580.636 | D40: =[2]Output!D14 -> -33959 | E40: =[2]Output!E14 -> -8906.824887 | F40: =[2]Output!F14 -> 0 | K40: -33959
A41: Capital expenditure ~ value of commissioned assets | B41: =[2]Output!B15 -> 961 | C41: =[2]Output!C15 -> 15514.61337 | D41: =[2]Output!D15 -> 15572 | E41: =[2]Output!E15 -> 5437.82584 | F41: =[2]Output!F15 -> 18812.79207 | K41: 15572
A42: Alternative X factor (leave blank if no alternative) | B42: -0.055 | C42: -0.05 | D42: -0.03 | E42: -0.1 | F42: -0.085 | K42: =IF(ISBLANK(INDEX(B42:F42,,$J$21)),"blank",INDEX(B42:F42,,$J$21)) -> -0.03
A43: DPP2 2022 values | B43: 4383.998268 | C43: 51435.56862 | D43: 50702.2772 | E43: 24646.15131 | F43: 131623.3864 | K43: =IF(ISBLANK(INDEX(B43:F43,,$J$21)),"blank",INDEX(B43:F43,,$J$21)) -> 50702.2772
A44: Operating expenditure
A45: Operating expenditure in year ending 2021 | K45: =INDEX(B45:F45,,$J$21) -> 0
A46: Operating expenditure in year ending 2022 | B46: ='[3]Reflation outputs'!B5 -> 2105.869235 | C46: ='[3]Reflation outputs'!C5 -> 19191.84016 | D46: ='[3]Reflation outputs'!D5 -> 14561.01945 | E46: ='[3]Reflation outputs'!E5 -> 9825.824075 | F46: ='[3]Reflation outputs'!F5 -> 49431.44087 | K46: 14561.01945
A47: Operating expenditure in year ending 2023 | B47: ='[3]Reflation outputs'!B6 -> 2553.489498 | C47: ='[3]Reflation outputs'!C6 -> 19977.41341 | D47: ='[3]Reflation outputs'!D6 -> 15402.43671 | E47: ='[3]Reflation outputs'!E6 -> 10562.23877 | F47: ='[3]Reflation outputs'!F6 -> 53512.75174 | K47: 15402.43671
A48: Operating expenditure in year ending 2024 | B48: ='[3]Reflation outputs'!B7 -> 2644.955245 | C48: ='[3]Reflation outputs'!C7 -> 20475.16567 | D48: ='[3]Reflation outputs'!D7 -> 15938.21291 | E48: ='[3]Reflation outputs'!E7 -> 11087.79684 | F48: ='[3]Reflation outputs'!F7 -> 55336.41136 | K48: 15938.21291
A49: Operating expenditure in year ending 2025 | B49: ='[3]Reflation outputs'!B8 -> 2722.37449 | C49: ='[3]Reflation outputs'!C8 -> 21057.76636 | D49: ='[3]Reflation outputs'!D8 -> 16028.18117 | E49: ='[3]Reflation outputs'!E8 -> 11550.22358 | F49: ='[3]Reflation outputs'!F8 -> 56654.08304 | K49: 16028.18117
A50: Operating expenditure in year ending 2026 | B50: ='[3]Reflation outputs'!B9 -> 2793.662096 | C50: ='[3]Reflation outputs'!C9 -> 21637.5593 | D50: ='[3]Reflation outputs'!D9 -> 16465.67508 | E50: ='[3]Reflation outputs'!E9 -> 11986.17028 | F50: ='[3]Reflation outputs'!F9 -> 58465.28188 | K50: 16465.67508
A51: Operating expenditure in year ending 2027 | B51: ='[3]Reflation outputs'!B10 -> 2866.778433 | C51: ='[3]Reflation outputs'!C10 -> 22150.62899 | D51: ='[3]Reflation outputs'!D10 -> 16951.96015 | E51: ='[3]Reflation outputs'!E10 -> 12428.0251 | F51: ='[3]Reflation outputs'!F10 -> 59738.56089 | K51: 16951.96015
A53: Constant price revenue growth
A54: Constant price revenue growth in year ending 2021 | K54: =INDEX(B54:F54,,$J$21) -> 0
A55: Constant price revenue growth in year ending 2022 | B55: =[4]Output!B3 -> -0.001003335731 | C55: =[4]Output!C3 -> 0.01365074927 | D55: =[4]Output!D3 -> 0.01402179604 | E55: =[4]Output!E3 -> 0.02595745483 | K55: =INDEX(B55:F55,,$J$21) -> 0.01402179604
A56: Constant price revenue growth in year ending 2023 | B56: =[4]Output!B4 -> -0.00292858236 | C56: =[4]Output!C4 -> 0.01423886913 | D56: =[4]Output!D4 -> 0.01548673721 | E56: =[4]Output!E4 -> 0.001446936929 | K56: =INDEX(B56:F56,,$J$21) -> 0.01548673721
A57: Constant price revenue growth in year ending 2024 | B57: =[4]Output!B5 -> -0.003206394073 | C57: =[4]Output!C5 -> 0.01347482345 | D57: =[4]Output!D5 -> 0.01032253435 | E57: =[4]Output!E5 -> 0.001283574806 | K57: 0.01032253435
A58: Constant price revenue growth in year ending 2025 | B58: =[4]Output!B6 -> -0.003464122892 | C58: =[4]Output!C6 -> 0.01273583812 | D58: =[4]Output!D6 -> 0.01021189474 | E58: =[4]Output!E6 -> 0.001123060514 | K58: 0.01021189474
A59: Constant price revenue growth in year ending 2026 | B59: =[4]Output!B7 -> -0.003702911872 | C59: =[4]Output!C7 -> 0.01202310459 | D59: =[4]Output!D7 -> 0.0101010024 | E59: =[4]Output!E7 -> 0.0009656319629 | K59: 0.0101010024
A60: Constant price revenue growth in year ending 2027 | B60: =[4]Output!B8 -> -0.00392390725 | C60: =[4]Output!C8 -> 0.01134481886 | D60: =[4]Output!D8 -> 0.01003288107 | E60: =[4]Output!E8 -> 0.000811366982 | K60: 0.01003288107
A61: Constant price revenue growth in year ending 2028 | K61: 0
A62: Value of commissioned assets | B62: Data for first row of value of commissioned assets linked differently from rest of panel
A63: Value of commissioned assets, yr ending 2021 | B63: =B41 -> 961 | C63: =C41 -> 15514.61337 | D63: 15572 | E63: 5437.82584 | F63: 18812.79207 | K63: =INDEX(B63:F63,,$J$21) -> 15572
A64: Value of commissioned assets, yr ending 2022 | B64: ='[3]Reflation outputs'!B14 -> 831.3206597 | C64: ='[3]Reflation outputs'!C14 -> 18183.28609 | D64: ='[3]Reflation outputs'!D14 -> 7573.743649 | E64: ='[3]Reflation outputs'!E14 -> 21122.86143 | F64: ='[3]Reflation outputs'!F14 -> 37106.20045 | K64: 7573.743649
A65: Value of commissioned assets, yr ending 2023 | B65: ='[3]Reflation outputs'!B15 -> 932.2514037 | C65: ='[3]Reflation outputs'!C15 -> 19010.71508 | D65: ='[3]Reflation outputs'!D15 -> 6788.752246 | E65: ='[3]Reflation outputs'!E15 -> 13894.17236 | F65: ='[3]Reflation outputs'!F15 -> 40302.49786 | K65: 6788.752246
A66: Value of commissioned assets, yr ending 2024 | B66: ='[3]Reflation outputs'!B16 -> 1001.142265 | C66: ='[3]Reflation outputs'!C16 -> 19197.17854 | D66: ='[3]Reflation outputs'!D16 -> 6162.44264 | E66: ='[3]Reflation outputs'!E16 -> 14098.28233 | F66: ='[3]Reflation outputs'!F16 -> 47383.78588 | K66: 6162.44264
A67: Value of commissioned assets, yr ending 2025 | B67: ='[3]Reflation outputs'!B17 -> 1035.88761 | C67: ='[3]Reflation outputs'!C17 -> 20204.48326 | D67: ='[3]Reflation outputs'!D17 -> 6867.068833 | E67: ='[3]Reflation outputs'!E17 -> 14182.29891 | F67: ='[3]Reflation outputs'!F17 -> 40281.49669 | K67: 6867.068833
A68: Value of commissioned assets, yr ending 2026 | B68: ='[3]Reflation outputs'!B18 -> 1022.394124 | C68: ='[3]Reflation outputs'!C18 -> 22084.79006 | D68: ='[3]Reflation outputs'!D18 -> 7880.523059 | E68: ='[3]Reflation outputs'!E18 -> 14168.41741 | F68: ='[3]Reflation outputs'!F18 -> 42695.22192 | K68: 7880.523059
A69: Value of commissioned assets, yr ending 2027 | B69: ='[3]Reflation outputs'!B19 -> 1050.70063 | C69: ='[3]Reflation outputs'!C19 -> 22259.48831 | D69: ='[3]Reflation outputs'!D19 -> 8310.031422 | E69: ='[3]Reflation outputs'!E19 -> 14595.55696 | F69: ='[3]Reflation outputs'!F19 -> 45010.91881 | K69: 8310.031422
A70: Value of commissioned assets, yr ending 2028 | K70: 0
A71: Name | B71: GasNet | C71: Powerco | D71: Vector | E71: First Gas distribution | F71: First Gas transmission
A72: Value of disposed assets
A73: Value of disposed assets, yr ending 2020 | B73: =[2]Output!B17 -> 0 | C73: =[2]Output!C17 -> 587 | D73: =[2]Output!D17 -> 48 | E73: =[2]Output!E17 -> 0 | F73: =[2]Output!F17 -> 53.00725 | K73: 48
A74: Value of disposed assets, yr ending 2021 | B74: =[2]Output!B18 -> 0 | C74: =[2]Output!C18 -> 119.5918062 | D74: =[2]Output!D18 -> 280 | E74: =[2]Output!E18 -> 118.5853312 | F74: =[2]Output!F18 -> 1634.348379 | K74: 280
A75: Value of disposed assets, yr ending 2022 | B75: =[2]Output!B19 -> 5.052591791 | C75: =[2]Output!C19 -> 360.5917861 | D75: =[2]Output!D19 -> 105.0678636 | E75: =[2]Output!E19 -> 31.67792673 | F75: =[2]Output!F19 -> 466.0617575 | K75: 105.0678636
A76: Value of disposed assets, yr ending 2023 | B76: =[2]Output!B20 -> 5.183959177 | C76: =[2]Output!C20 -> 369.6065808 | D76: =[2]Output!D20 -> 107.7996281 | E76: =[2]Output!E20 -> 32.4698749 | F76: =[2]Output!F20 -> 477.7133014 | K76: 107.7996281
A77: Value of disposed assets, yr ending 2024 | B77: =[2]Output!B21 -> 5.303190238 | C77: =[2]Output!C21 -> 377.7379256 | D77: =[2]Output!D21 -> 110.2790195 | E77: =[2]Output!E21 -> 33.18421215 | F77: =[2]Output!F21 -> 488.2229941 | K77: 110.2790195
A78: Value of disposed assets, yr ending 2025 | B78: =[2]Output!B22 -> 5.409254043 | C78: =[2]Output!C22 -> 385.2926841 | D78: =[2]Output!D22 -> 112.4845999 | E78: =[2]Output!E22 -> 33.84789639 | F78: =[2]Output!F22 -> 497.987454 | K78: 112.4845999
A79: Value of disposed assets, yr ending 2026 | B79: =[2]Output!B23 -> 5.517439124 | C79: =[2]Output!C23 -> 392.9985377 | D79: =[2]Output!D23 -> 114.7342919 | E79: =[2]Output!E23 -> 34.52485432 | F79: =[2]Output!F23 -> 507.947203 | K79: 114.7342919
A80: Value of disposed assets, yr ending 2027 | B80: =[2]Output!B24 -> 5.627787907 | C80: =[2]Output!C24 -> 400.8585085 | D80: =[2]Output!D24 -> 117.0289778 | E80: =[2]Output!E24 -> 35.21535141 | F80: =[2]Output!F24 -> 518.1061471 | K80: 117.0289778
A81: Value of disposed assets, yr ending 2028 | B81: =[2]Output!B25 -> 5.740343665 | C81: =[2]Output!C25 -> 408.8756787 | D81: =[2]Output!D25 -> 119.3695573 | E81: =[2]Output!E25 -> 35.91965843 | F81: =[2]Output!F25 -> 528.46827 | K81: 119.3695573
A82: Other regulated income
A83: Other regulated income, yr ending 2023 | B83: =[2]Output!B28 -> 48.35930118 | C83: =[2]Output!C28 -> 614.3067864 | D83: =[2]Output!D28 -> -106.0844096 | E83: =[2]Output!E28 -> 276.6205741 | K83: -106.0844096
A84: Other regulated income, yr ending 2024 | B84: =[2]Output!B29 -> 49.47156511 | C84: =[2]Output!C29 -> 627.8215357 | D84: =[2]Output!D29 -> -108.524351 | E84: =[2]Output!E29 -> 282.7062267 | K84: -108.524351
A85: Other regulated income, yr ending 2025 | B85: =[2]Output!B30 -> 50.46099641 | C85: =[2]Output!C30 -> 640.3779664 | D85: =[2]Output!D30 -> -110.694838 | E85: =[2]Output!E30 -> 288.3603512 | K85: -110.694838
A86: Other regulated income, yr ending 2026 | B86: =[2]Output!B31 -> 51.47021634 | C86: =[2]Output!C31 -> 653.1855257 | D86: =[2]Output!D31 -> -112.9087348 | E86: =[2]Output!E31 -> 294.1275583 | K86: -112.9087348
A87: Other regulated income, yr ending 2027 | B87: =[2]Output!B32 -> 52.49962066 | C87: =[2]Output!C32 -> 666.2492362 | D87: =[2]Output!D32 -> -115.1669095 | E87: =[2]Output!E32 -> 300.0101094 | K87: -115.1669095
A88: Other regulated income, yr ending 2028 | B88: =[2]Output!B33 -> 53.54961308 | C88: =[2]Output!C33 -> 679.5742209 | D88: =[2]Output!D33 -> -117.4702477 | E88: =[2]Output!E33 -> 306.0103116 | K88: -117.4702477

Sheet GPB data
A1: Inputs for the selected supplier | B1: Values, not time series | C1: Early base year | D1: Standard base year | E1: Gap year | F1: 1st BBAR or Pricing year | G1: 2nd BBAR or Pricing year | H1: 3rd BBAR or Pricing year | I1: 4th BBAR or Pricing year | J1: 5th BBAR or Pricing year
A2: Data from the Inputs sheet that relates to the selected supplier. The supplier's name is user-selected in cell C3 on the Inputs sheet. | C2: =TEXT(EOMONTH($B$17+1,-25)+1,"dd.mm.yy") & " to " & TEXT(EOMONTH($B$17,-12),"dd.mm.yy") -> 01.07.19 to 30.06.20 | D2: =TEXT(EOMONTH($B$17+1,-13)+1,"dd.mm.yy") & " to " & TEXT(EOMONTH($B$17,0),"dd.mm.yy") -> 01.07.20 to 30.06.21 | E2: =TEXT(EOMONTH($B$17+1,-1)+1,"dd.mm.yy") & " to " & TEXT(EOMONTH($B$17,12),"dd.mm.yy") -> 01.07.21 to 30.06.22 | F2: =TEXT(EOMONTH($B$17+1,11)+1,"dd.mm.yy") & " to " & TEXT(EOMONTH($B$17,24),"dd.mm.yy") -> 01.07.22 to 30.06.23 | G2: =TEXT(EOMONTH($B$17+1,23)+1,"dd.mm.yy") & " to " & TEXT(EOMONTH($B$17,36),"dd.mm.yy") -> 01.07.23 to 30.06.24 | H2: =TEXT(EOMONTH($B$17+1,35)+1,"dd.mm.yy") & " to " & TEXT(EOMONTH($B$17,48),"dd.mm.yy") -> 01.07.24 to 30.06.25 | I2: =TEXT(EOMONTH($B$17+1,47)+1,"dd.mm.yy") & " to " & TEXT(EOMONTH($B$17,60),"dd.mm.yy") -> 01.07.25 to 30.06.26 | J2: =TEXT(EOMONTH($B$17+1,59)+1,"dd.mm.yy") & " to " & TEXT(EOMONTH($B$17,72),"dd.mm.yy") -> 01.07.26 to 30.06.27
A3: Supplier | J3: =GPB_name -> Vector
A4: Supplier number | C4: =Inputs!C5 -> 3
A5: General data
A6: Non business-specific single inputs
A7: =Inputs!A16 -> Vanilla WACC (67th percentile) | B7: =Inputs!B16 -> 0.0614
A8: =Inputs!A17 -> Cost of debt | B8: =Inputs!B17 -> 0.0404
A9: =Inputs!A18 -> Leverage | B9: =Inputs!B18 -> 0.42
A10: =Inputs!A19 -> Remaining asset life for additional assets before adjustment | B10: =Inputs!B19 -> 45 | C10: years
A11: =Inputs!A20 -> Industry-wide X factor | B11: =Inputs!B20 -> 0
A12: =Inputs!A13 -> Days from mid-year to year-end | B12: =Inputs!B13 -> 182 | C12: days
A13: =Inputs!A14 -> Days from revenue date to year-end | B13: =Inputs!B14 -> 148 | C13: days
A14: =Inputs!A15 -> Day prior to start of the regulatory period | B14: =Inputs!B15 -> 2022-09-30
A15: General time-series data
A16: Early base year adopted? | B16: =Inputs!K24 -> FALSE
A17: Last day in the standard base year | B17: =Inputs!K25 -> 2021-06-30
A18: BBAR year ending in calendar year: | C18: =Inputs!C7 -> 2020 | D18: =Inputs!D7 -> 2021 | E18: =Inputs!E7 -> 2022 | F18: =Inputs!F7 -> 2023 | G18: =Inputs!G7 -> 2024 | H18: =Inputs!H7 -> 2025 | I18: =Inputs!I7 -> 2026 | J18: =Inputs!J7 -> 2027
A19: =Inputs!A8 -> Forecast changes in CPI used for revaluations, June year-ends | D19: =Inputs!D8 -> 0.03342884432 | E19: =Inputs!E8 -> 0.063 | F19: =Inputs!F8 -> 0.026 | G19: =Inputs!G8 -> 0.023 | H19: =Inputs!H8 -> 0.02 | I19: =Inputs!I8 -> 0.02 | J19: =Inputs!J8 -> 0.02
A20: =Inputs!A9 -> Forecast changes in CPI used for revaluations, September year-ends | D20: =Inputs!D9 -> 0.04933586338 | E20: =Inputs!E9 -> 0.05 | F20: =Inputs!F9 -> 0.025 | G20: =Inputs!G9 -> 0.022 | H20: =Inputs!H9 -> 0.02 | I20: =Inputs!I9 -> 0.02 | J20: =Inputs!J9 -> 0.02
A21: =Inputs!A10 -> Forecast changes in the CPI element of the price path for GDB | F21: =Inputs!F10 -> 0.05214947966 | G21: =Inputs!G10 -> 0.04628530323 | H21: =Inputs!H10 -> 0.02474373522 | I21: =Inputs!I10 -> 0.02149215402 | J21: =Inputs!J10 -> 0.02
A22: =Inputs!A11 -> Forecast changes in the CPI element of the price path for GTB | F22: =Inputs!F11 -> 0.03092122799 | G22: =Inputs!G11 -> 0.02324453846 | H22: =Inputs!H11 -> 0.02024799149 | I22: =Inputs!I11 -> 0.02 | J22: =Inputs!J11 -> 0.02
A23: =Inputs!A12 -> Corporate tax rate | C23: =Inputs!C12 -> 0.28 | D23: =Inputs!D12 -> 0.28 | E23: =Inputs!E12 -> 0.28 | F23: =Inputs!F12 -> 0.28 | G23: =Inputs!G12 -> 0.28 | H23: =Inputs!H12 -> 0.28 | I23: =Inputs!I12 -> 0.28 | J23: =Inputs!J12 -> 0.28
A24: Business-specific data
A25: BBAR year ending in calendar year: | D25: =D$18 -> 2021 | E25: =E$18 -> 2022 | F25: 2023 | G25: 2024 | H25: 2025 | I25: 2026 | J25: 2027
A26: ="Forecast changes in CPI used for revaluations, " & TEXT(B17, "mmm") & " year-ends" -> Forecast changes in CPI used for revaluations, Jun year-ends | D26: =IF(MONTH($B$17)=6,D19,D20) -> 0.03342884432 | E26: =IF(MONTH($B$17)=6,E19,E20) -> 0.063 | F26: 0.026 | G26: 0.023 | H26: 0.02 | I26: 0.02 | J26: 0.02
A27: CPI price-path | D27: =IF(MONTH($B$17)=6,D21,D22) -> 0 | E27: =IF(MONTH($B$17)=6,E21,E22) -> 0 | F27: =IF(Scenario=5,F22,F21) -> 0.05214947966 | G27: 0.04628530323 | H27: 0.02474373522 | I27: 0.02149215402 | J27: 0.02
A28: Year-end timing, tax approach and form of control
A29: =Inputs!A26 -> Tax payable (payable) or deferred tax (deferred) | B29: =Inputs!K26 -> deferred
A30: =Inputs!A27 -> Total revenue cap (TRC) or weighted avg price cap (WAPC) | B30: =Inputs!K27 -> WAPC
A31: Adjustment factor (for accelerated depreciation) existing | B31: =Inputs!K28 -> 0.6593505936
A32: Adjustment factor (for accelerated depreciation) additional | B32: =Inputs!K29 -> 0.6593505936
C33: =C1 -> Early base year | D33: =D1 -> Standard base year
A34: =Inputs!A31 -> Opening RAB | B34: =Inputs!K31 -> 434256 | C34: =IF(EarlyBaseYear,B34,"~") -> ~ | D34: =IF(EarlyBaseYear,"~",B34) -> 434256
A35: =Inputs!A32 -> Total depreciation | B35: =Inputs!K32 -> 12684 | C35: ~ | D35: 12684
A36: =Inputs!A33 -> Closing RAB | B36: =Inputs!K33 -> 451131 | C36: ~ | D36: 451131
A37: =Inputs!A34 -> Opening RAB excluding revaluations | B37: =Inputs!K34 -> 387877 | C37: ~ | D37: 387877
A38: =Inputs!A35 -> Adjusted depreciation | B38: =Inputs!K35 -> 11347 | C38: ~ | D38: 11347
A39: =Inputs!A36 -> Tax depreciation | B39: =Inputs!K36 -> 18496 | C39: ~ | D39: 18496
A40: =Inputs!A37 -> Opening regulatory tax asset value | B40: =Inputs!K37 -> 178920 | C40: ~ | D40: 178920
A41: =Inputs!A39 -> Term credit spread differential allowance | B41: =IF(Inputs!K39>0,Inputs!K39,0) -> 394.7103671 | C41: ~ | D41: =IF(EarlyBaseYear,"~",B41) -> 394.7103671
A42: =Inputs!A40 -> Opening deferred tax balance | B42: =Inputs!K40 -> -33959 | C42: ~ | D42: =IF(EarlyBaseYear,"~",B42) -> -33959
A43: =Inputs!A38 -> Amortisation of initial differences in asset values | B43: =Inputs!K38 -> 2452.34375
A44: Alternative X factor (insert "blank" if no alternative) | B44: =Inputs!K42 -> -0.03
A45: DPP2 2022 prices | B45: =Inputs!K43 -> 50702.2772
A46: Operating expenditure
A47: =Inputs!A45 -> Operating expenditure in year ending 2021 | B47: =Inputs!K45 -> 0
A48: =Inputs!A46 -> Operating expenditure in year ending 2022 | B48: =Inputs!K46 -> 14561.01945
A49: =Inputs!A47 -> Operating expenditure in year ending 2023 | B49: =Inputs!K47 -> 15402.43671 | C49: 1st BBAR year
A50: =Inputs!A48 -> Operating expenditure in year ending 2024 | B50: =Inputs!K48 -> 15938.21291
A51: =Inputs!A49 -> Operating expenditure in year ending 2025 | B51: =Inputs!K49 -> 16028.18117
A52: =Inputs!A50 -> Operating expenditure in year ending 2026 | B52: =Inputs!K50 -> 16465.67508
A53: =Inputs!A51 -> Operating expenditure in year ending 2027 | B53: =Inputs!K51 -> 16951.96015
A55: Operating expenditure in each year | D55: =TRANSPOSE(B47:B53) -> 0 | E55: 14561.01945 | F55: 15402.43671 | G55: 15938.21291 | H55: 16028.18117 | I55: 16465.67508 | J55: 16951.96015
A56: Constant price revenue growth
A58: =Inputs!A54 -> Constant price revenue growth in year ending 2021 | B58: =Inputs!K54 -> 0
A59: =Inputs!A55 -> Constant price revenue growth in year ending 2022 | B59: =Inputs!K55 -> 0.01402179604
A60: =Inputs!A56 -> Constant price revenue growth in year ending 2023 | B60: =Inputs!K56 -> 0.01548673721 | C60: 1st pricing year
A61: =Inputs!A57 -> Constant price revenue growth in year ending 2024 | B61: =Inputs!K57 -> 0.01032253435
A62: =Inputs!A58 -> Constant price revenue growth in year ending 2025 | B62: =Inputs!K58 -> 0.01021189474
A63: =Inputs!A59 -> Constant price revenue growth in year ending 2026 | B63: =Inputs!K59 -> 0.0101010024
A64: =Inputs!A60 -> Constant price revenue growth in year ending 2027 | B64: =Inputs!K60 -> 0.01003288107
A65: =Inputs!A61 -> Constant price revenue growth in year ending 2028 | B65: =Inputs!K61 -> 0
A66: Constant price revenue growth in each year | D66: =TRANSPOSE(B58:B64) -> 0 | E66: 0.01402179604 | F66: 0.01548673721 | G66: 0.01032253435 | H66: 0.01021189474 | I66: 0.0101010024 | J66: 0.01003288107
A67: Value of commissioned assets
A69: =Inputs!A63 -> Value of commissioned assets, yr ending 2021 | B69: =Inputs!K63 -> 15572
A70: =Inputs!A64 -> Value of commissioned assets, yr ending 2022 | B70: =Inputs!K64 -> 7573.743649
A71: =Inputs!A65 -> Value of commissioned assets, yr ending 2023 | B71: =Inputs!K65 -> 6788.752246 | C71: 1st BBAR year
A72: =Inputs!A66 -> Value of commissioned assets, yr ending 2024 | B72: =Inputs!K66 -> 6162.44264
A73: =Inputs!A67 -> Value of commissioned assets, yr ending 2025 | B73: =Inputs!K67 -> 6867.068833
A74: =Inputs!A68 -> Value of commissioned assets, yr ending 2026 | B74: =Inputs!K68 -> 7880.523059
A75: =Inputs!A69 -> Value of commissioned assets, yr ending 2027 | B75: =Inputs!K69 -> 8310.031422
A76: =Inputs!A70 -> Value of commissioned assets, yr ending 2028 | B76: =Inputs!K70 -> 0
A77: Value of commissioned assets in each year | D77: =TRANSPOSE(B69:B75) -> 15572 | E77: 7573.743649 | F77: 6788.752246 | G77: 6162.44264 | H77: 6867.068833 | I77: 7880.523059 | J77: 8310.031422
A78: Disposed assets
A79: =Inputs!A73 -> Value of disposed assets, yr ending 2020 | B79: =Inputs!K73 -> 48
A80: =Inputs!A74 -> Value of disposed assets, yr ending 2021 | B80: =Inputs!K74 -> 280
A81: =Inputs!A75 -> Value of disposed assets, yr ending 2022 | B81: =Inputs!K75 -> 105.0678636
A82: =Inputs!A76 -> Value of disposed assets, yr ending 2023 | B82: =Inputs!K76 -> 107.7996281 | C82: 1st BBAR year
A83: =Inputs!A77 -> Value of disposed assets, yr ending 2024 | B83: =Inputs!K77 -> 110.2790195
A84: =Inputs!A78 -> Value of disposed assets, yr ending 2025 | B84: =Inputs!K78 -> 112.4845999
A85: =Inputs!A79 -> Value of disposed assets, yr ending 2026 | B85: =Inputs!K79 -> 114.7342919
A86: =Inputs!A80 -> Value of disposed assets, yr ending 2027 | B86: =Inputs!K80 -> 117.0289778
A87: =Inputs!A81 -> Value of disposed assets, yr ending 2028 | B87: =Inputs!K81 -> 119.3695573
A88: Value of disposed assets in each year | C88: =TRANSPOSE(B79:B86) -> 48 | D88: 280 | E88: 105.0678636 | F88: 107.7996281 | G88: 110.2790195 | H88: 112.4845999 | I88: 114.7342919 | J88: 117.0289778
A89: Other regulated income
A90: =Inputs!A83 -> Other regulated income, yr ending 2023 | B90: =Inputs!K83 -> -106.0844096 | C90: 1st BBAR year
A91: =Inputs!A84 -> Other regulated income, yr ending 2024 | B91: =Inputs!K84 -> -108.524351
A92: =Inputs!A85 -> Other regulated income, yr ending 2025 | B92: =Inputs!K85 -> -110.694838
A93: =Inputs!A86 -> Other regulated income, yr ending 2026 | B93: =Inputs!K86 -> -112.9087348
A94: =Inputs!A87 -> Other regulated income, yr ending 2027 | B94: =Inputs!K87 -> -115.1669095
A95: =Inputs!A88 -> Other regulated income, yr ending 2028 | B95: =Inputs!K88 -> -117.4702477
A96: Other regulated income in each year | F96: =TRANSPOSE(B90:B94) -> -106.0844096 | G96: -108.524351 | H96: -110.694838 | I96: -112.9087348 | J96: -115.1669095

Sheet Timing
A1: Timing | F1: 1st BBAR year | G1: 2nd BBAR year | H1: 3rd BBAR year | I1: 4th BBAR year | J1: 5th BBAR year
A2: Calculations related to timing
A3: Inputs
A4: Days from mid-year to year-end | C4: ='GPB data'!B12 -> 182
A5: Days from revenue date to year-end | C5: ='GPB data'!B13 -> 148
A6: Vanilla WACC (67th percentile) | C6: =WACC -> 0.0614
A7: ='GPB data'!A17 -> Last day in the standard base year | C7: ='GPB data'!B17 -> 2021-06-30
A8: ='GPB data'!A14 -> Day prior to start of the regulatory period | C8: ='GPB data'!B14 -> 2022-09-30
A9: Calculations
A10: Year-end of 1st BBAR year | C10: =EOMONTH(C7,24) -> 2023-06-30
A11: TFrev for MAR calculations | C11: =(1+$C$6)^(C5/365) -> 1.024456298 | D11: Intra-year timing factor: discount from revenue date to end of year values
A12: Number of days between mid-period and revenue date | C12: =C4-C5 -> 34
F13: 1st BBAR year | G13: 2nd BBAR year | H13: 3rd BBAR year | I13: 4th BBAR year | J13: 5th BBAR year
A14: BBAR year ending in calendar year: | F14: ='GPB data'!F18 -> 2023 | G14: ='GPB data'!G18 -> 2024 | H14: ='GPB data'!H18 -> 2025 | I14: ='GPB data'!I18 -> 2026 | J14: ='GPB data'!J18 -> 2027
A15: Date of the end of the BBAR year | F15: =EOMONTH(C$7,24) -> 2023-06-30 | G15: =EOMONTH(F15,12) -> 2024-06-30 | H15: 2025-06-30 | I15: 2026-06-30 | J15: 2027-06-30
A16: Date of the start of the BBAR year | F16: =EOMONTH(C$7,12) -> 2022-06-30 | G16: 2023-06-30 | H16: 2024-06-30 | I16: 2025-06-30 | J16: 2026-06-30
A17: Number of days in the BBAR year | F17: =F15-F16 -> 365 | G17: 366 | H17: 365 | I17: 365 | J17: 365
A18: Date of the end of the BBAR period | F18: =EOMONTH(C7,24) -> 2023-06-30 | G18: =EOMONTH(F18,12) -> 2024-06-30 | H18: =EOMONTH(G18,12) -> 2025-06-30 | I18: =EOMONTH(H18,12) -> 2026-06-30 | J18: =EOMONTH(C8,48) -> 2026-09-30
A19: Date of the start of the BBAR period | F19: =C8 -> 2022-09-30 | G19: =F18 -> 2023-06-30 | H19: =G18 -> 2024-06-30 | I19: =H18 -> 2025-06-30 | J19: =I18 -> 2026-06-30
A20: Number of days in the BBAR period | F20: =F18-F19 -> 273 | G20: 366 | H20: 365 | I20: 365 | J20: 92
A21: Number of days in the latter half of the BBAR period | F21: =ROUNDDOWN(F20/2,0) -> 136 | G21: 183 | H21: 182 | I21: 182 | J21: 46
A22: Mid period date | F22: =F18-F21 -> 2023-02-14 | G22: 2023-12-30 | H22: 2024-12-30 | I22: 2025-12-30 | J22: 2026-08-15
A23: Tax date | F23: =F18-F21 -> 2023-02-14 | G23: 2023-12-30 | H23: 2024-12-30 | I23: 2025-12-30 | J23: 2026-08-15
A24: Number days between tax date and period-end | F24: =F18-F23 -> 136 | G24: 183 | H24: 182 | I24: 182 | J24: 46
A25: Number days between revenue date and period-end | F25: =F21-$C$12 -> 102 | G25: 149 | H25: 148 | I25: 148 | J25: 12
A26: Outputs
A27: TFrev for MAR calculations | C27: =$C$11 -> 1.024456298
A28: Number of days in the BBAR period | F28: =F20 -> 273 | G28: 366 | H28: 365 | I28: 365 | J28: 92
A29: Proportion of building blocks year that is in PV period | F29: =F28/F17 -> 0.7479452055 | G29: 1 | H29: 1 | I29: 1 | J29: 0.2520547945
A30: TFmid | F30: =(1+$C$6)^(F21/F17) -> 1.022451267 | G30: 1.03024269 | H30: 1.030158596 | I30: 1.030158596 | J30: 1.00753809
A31: TFtax | F31: =(1+$C$6)^(F24/F17) -> 1.022451267 | G31: 1.03024269 | H31: 1.030158596 | I31: 1.030158596 | J31: 1.00753809
A32: TFrev | F32: =(1+$C$6)^(F25/F17) -> 1.016791631 | G32: =(1+$C$6)^(G25/G17) -> 1.024555464 | H32: 1.024456298 | I32: 1.024456298 | J32: 1.001961004

Sheet Diag
A2: Gas Pipeline Businesses - DPP reset - Years in the next regulatory period
B4: first day in quarter | C4: =EOMONTH(C5,-3)+1 -> 2019-10-01 | D4: 2020-01-01 | E4: 2020-04-01 | F4: 2020-07-01 | G4: 2020-10-01 | H4: 2021-01-01 | I4: 2021-04-01 | J4: 2021-07-01 | K4: 2021-10-01 | L4: =EOMONTH(L5,-3)+1 -> 2022-01-01 | M4: =EOMONTH(M5,-3)+1 -> 2022-04-01 | N4: =EOMONTH(N5,-3)+1 -> 2022-07-01 | O4: 2022-10-01 | P4: 2023-01-01 | Q4: 2023-04-01 | R4: 2023-07-01 | S4: 2023-10-01 | T4: 2024-01-01 | U4: 2024-04-01 | V4: 2024-07-01 | W4: 2024-10-01 | X4: 2025-01-01 | Y4: 2025-04-01 | Z4: 2025-07-01 | AA4: 2025-10-01 | AB4: 2026-01-01 | AC4: 2026-04-01 | AD4: 2026-07-01 | AE4: 2026-10-01 | AF4: 2027-01-01 | AG4: 2027-04-01 | AH4: 2027-07-01 | AI4: 2027-10-01 | AJ4: 2028-01-01 | AK4: 2028-04-01
B5: last day in quarter | C5: 2019-12-31 | D5: =EOMONTH(C5,3) -> 2020-03-31 | E5: =EOMONTH(D5,3) -> 2020-06-30 | F5: 2020-09-30 | G5: 2020-12-31 | H5: 2021-03-31 | I5: 2021-06-30 | J5: 2021-09-30 | K5: 2021-12-31 | L5: 2022-03-31 | M5: 2022-06-30 | N5: 2022-09-30 | O5: 2022-12-31 | P5: 2023-03-31 | Q5: 2023-06-30 | R5: 2023-09-30 | S5: 2023-12-31 | T5: 2024-03-31 | U5: 2024-06-30 | V5: 2024-09-30 | W5: 2024-12-31 | X5: 2025-03-31 | Y5: 2025-06-30 | Z5: 2025-09-30 | AA5: 2025-12-31 | AB5: 2026-03-31 | AC5: 2026-06-30 | AD5: 2026-09-30 | AE5: 2026-12-31 | AF5: 2027-03-31 | AG5: 2027-06-30 | AH5: 2027-09-30 | AI5: 2027-12-31 | AJ5: 2028-03-31 | AK5: 2028-06-30
A6: Columns in the RAB, Tax & BBAR sheets
C8: C | G8: D | K8: E | O8: F | S8: G | W8: H | AA8: I | AE8: J
B10: Last month in the quarter | C10: =C5 -> 2019-12-31 | D10: =D5 -> 2020-03-31 | E10: 2020-06-30 | F10: 2020-09-30 | G10: 2020-12-31 | H10: 2021-03-31 | I10: 2021-06-30 | J10: 2021-09-30 | K10: 2021-12-31 | L10: 2022-03-31 | M10: 2022-06-30 | N10: 2022-09-30 | O10: 2022-12-31 | P10: 2023-03-31 | Q10: 2023-06-30 | R10: 2023-09-30 | S10: 2023-12-31 | T10: 2024-03-31 | U10: 2024-06-30 | V10: 2024-09-30 | W10: 2024-12-31 | X10: 2025-03-31 | Y10: 2025-06-30 | Z10: 2025-09-30 | AA10: 2025-12-31 | AB10: 2026-03-31 | AC10: 2026-06-30 | AD10: 2026-09-30 | AE10: 2026-12-31 | AF10: 2027-03-31 | AG10: 2027-06-30
A12: 30 June year-end for ID (Vector, GasNet)
G13: Standard base year | K13: Gap year | O13: 1st BBAR year | S13: 2nd BBAR year | W13: 3rd BBAR year | AA13: 4th BBAR year | AE13: 5th BBAR year
B14: Disclosure years | F14: =TEXT(F$4,"dd.mm.yy") & " to " & TEXT(I$5,"dd.mm.yy") -> 01.07.20 to 30.06.21 | N14: =TEXT(N$4,"dd.mm.yy") & " to " & TEXT(Q$5,"dd.mm.yy") -> 01.07.22 to 30.06.23 | R14: =TEXT(R$4,"dd.mm.yy") & " to " & TEXT(U$5,"dd.mm.yy") -> 01.07.23 to 30.06.24 | V14: =TEXT(V$4,"dd.mm.yy") & " to " & TEXT(Y$5,"dd.mm.yy") -> 01.07.24 to 30.06.25 | Z14: =TEXT(Z$4,"dd.mm.yy") & " to " & TEXT(AC$5,"dd.mm.yy") -> 01.07.25 to 30.06.26 | AD14: =TEXT(AD$4,"dd.mm.yy") & " to " & TEXT(AG$5,"dd.mm.yy") -> 01.07.26 to 30.06.27
B16: Pricing years | O16: =TEXT(O$4,"dd.mm.yy") & " to " & TEXT(R$5,"dd.mm.yy") -> 01.10.22 to 30.09.23 | S16: =TEXT(S$4,"dd.mm.yy") & " to " & TEXT(V$5,"dd.mm.yy") -> 01.10.23 to 30.09.24 | W16: =TEXT(W$4,"dd.mm.yy") & " to " & TEXT(Z$5,"dd.mm.yy") -> 01.10.24 to 30.09.25 | AA16: =TEXT(AA$4,"dd.mm.yy") & " to " & TEXT(AD$5,"dd.mm.yy") -> 01.10.25 to 30.09.26 | AE16: =TEXT(AE$4,"dd.mm.yy") & " to " & TEXT(AH$5,"dd.mm.yy") -> 01.10.26 to 30.09.27
B18: Regulatory period | O18: =TEXT(O$4,"dd.mm.yy") & " to " & TEXT(AH$5,"dd.mm.yy") -> 01.10.22 to 30.09.27
A19: 30 September year-end for ID (Powerco, First Gas Distribution, First Gas Transmission)
H20: Standard base year | L20: Gap year | P20: 1st BBAR year | T20: 2nd BBAR year | X20: 3rd BBAR year | AB20: 4th BBAR year
B21: Disclosure years | C21: =TEXT(C$4,"dd.mm.yy") & " to " & TEXT(F$5,"dd.mm.yy") -> 01.10.19 to 30.09.20 | G21: =TEXT(G$4,"dd.mm.yy") & " to " & TEXT(J$5,"dd.mm.yy") -> 01.10.20 to 30.09.21 | O21: =TEXT(O$4,"dd.mm.yy") & " to " & TEXT(R$5,"dd.mm.yy") -> 01.10.22 to 30.09.23 | S21: =TEXT(S$4,"dd.mm.yy") & " to " & TEXT(V$5,"dd.mm.yy") -> 01.10.23 to 30.09.24 | W21: =TEXT(W$4,"dd.mm.yy") & " to " & TEXT(Z$5,"dd.mm.yy") -> 01.10.24 to 30.09.25 | AA21: =TEXT(AA$4,"dd.mm.yy") & " to " & TEXT(AD$5,"dd.mm.yy") -> 01.10.25 to 30.09.26
B23: Pricing years | O23: =TEXT(O$4,"dd.mm.yy") & " to " & TEXT(R$5,"dd.mm.yy") -> 01.10.22 to 30.09.23 | S23: =TEXT(S$4,"dd.mm.yy") & " to " & TEXT(V$5,"dd.mm.yy") -> 01.10.23 to 30.09.24 | W23: =TEXT(W$4,"dd.mm.yy") & " to " & TEXT(Z$5,"dd.mm.yy") -> 01.10.24 to 30.09.25 | AA23: =TEXT(AA$4,"dd.mm.yy") & " to " & TEXT(AD$5,"dd.mm.yy") -> 01.10.25 to 30.09.26
B25: Regulatory period | O25: =TEXT(O$4,"dd.mm.yy") & " to " & TEXT(AH$5,"dd.mm.yy") -> 01.10.22 to 30.09.27
P26: 1st MAR year | T26: 2nd MAR year | X26: 3rd MAR year | AB26: 4th MAR year
A27: Columns in the MAR sheet: | E27: C | G27: D | K27: E | O27: F | S27: G | W27: H | AA27: I
J33: =B4 -> first day in quarter | L33: =L4 -> 2022-01-01 | M33: =M4 -> 2022-04-01 | N33: 2022-07-01 | O33: 2022-10-01 | P33: 2023-01-01 | Q33: 2023-04-01 | R33: 2023-07-01 | S33: 2023-10-01 | T33: 2024-01-01 | U33: 2024-04-01 | V33: 2024-07-01 | W33: 2024-10-01 | X33: 2025-01-01 | Y33: 2025-04-01 | Z33: 2025-07-01 | AA33: 2025-10-01 | AB33: 2026-01-01 | AC33: 2026-04-01 | AD33: 2026-07-01 | AE33: 2026-10-01 | AF33: 2027-01-01 | AG33: 2027-04-01 | AH33: 2027-07-01 | AI33: 2027-10-01 | AJ33: 2028-01-01 | AK33: 2028-04-01
J34: =B5 -> last day in quarter | L34: =L5 -> 2022-03-31 | M34: 2022-06-30 | N34: 2022-09-30 | O34: 2022-12-31 | P34: 2023-03-31 | Q34: 2023-06-30 | R34: 2023-09-30 | S34: 2023-12-31 | T34: 2024-03-31 | U34: 2024-06-30 | V34: 2024-09-30 | W34: 2024-12-31 | X34: 2025-03-31 | Y34: 2025-06-30 | Z34: 2025-09-30 | AA34: 2025-12-31 | AB34: 2026-03-31 | AC34: 2026-06-30 | AD34: 2026-09-30 | AE34: 2026-12-31 | AF34: 2027-03-31 | AG34: 2027-06-30 | AH34: 2027-09-30 | AI34: 2027-12-31 | AJ34: 2028-03-31 | AK34: 2028-06-30

Sheet RAB
A1: Regulatory asset base | B1: Values, not time series | C1: Early base year | D1: Standard base year | E1: Gap year | F1: 1st BBAR year | G1: 2nd BBAR year | H1: 3rd BBAR year | I1: 4th BBAR year | J1: 5th BBAR year | L1: Spec ref | M1: GTB IM reference | N1: GDB IM reference
A2: Calculations relating to RAB values for full years
A3: Inputs | J3: =GPB_name -> Vector
A4: BBAR year ending in calendar year: | C4: ='GPB data'!C18 -> 2020 | D4: ='GPB data'!D18 -> 2021 | E4: ='GPB data'!E18 -> 2022 | F4: ='GPB data'!F18 -> 2023 | G4: ='GPB data'!G18 -> 2024 | H4: ='GPB data'!H18 -> 2025 | I4: ='GPB data'!I18 -> 2026 | J4: ='GPB data'!J18 -> 2027
A5: Opening RAB | C5: ='GPB data'!C34 -> ~ | D5: ='GPB data'!D34 -> 434256
A6: Total depreciation | C6: ='GPB data'!C35 -> ~ | D6: ='GPB data'!D35 -> 12684
A7: Closing RAB | C7: ='GPB data'!C36 -> ~ | D7: ='GPB data'!D36 -> 451131
A8: Value of disposed assets | D8: ='GPB data'!D88 -> 280 | E8: ='GPB data'!E88 -> 105.0678636 | F8: ='GPB data'!F88 -> 107.7996281 | G8: ='GPB data'!G88 -> 110.2790195 | H8: ='GPB data'!H88 -> 112.4845999 | I8: ='GPB data'!I88 -> 114.7342919 | J8: ='GPB data'!J88 -> 117.0289778
A9: Value of commissioned assets | D9: ='GPB data'!D77 -> 15572 | E9: ='GPB data'!E77 -> 7573.743649 | F9: ='GPB data'!F77 -> 6788.752246 | G9: ='GPB data'!G77 -> 6162.44264 | H9: ='GPB data'!H77 -> 6867.068833 | I9: ='GPB data'!I77 -> 7880.523059 | J9: ='GPB data'!J77 -> 8310.031422
A10: Remaining life for additional assets before adjustment factor | B10: ='GPB data'!B10 -> 45
A11: Forecast changes in CPI used for revaluations | D11: ='GPB data'!D26 -> 0.03342884432 | E11: ='GPB data'!E26 -> 0.063 | F11: ='GPB data'!F26 -> 0.026 | G11: ='GPB data'!G26 -> 0.023 | H11: ='GPB data'!H26 -> 0.02 | I11: ='GPB data'!I26 -> 0.02 | J11: ='GPB data'!J26 -> 0.02
A12: Adjustment factor (for accelerated depreciation) existing | B12: ='GPB data'!B31 -> 0.6593505936
A13: Adjustment factor (for accelerated depreciation) additional | B13: ='GPB data'!B32 -> 0.6593505936
A14: Remaining life for additional assets after adjustment | B14: =B10*B13 -> 29.67077671
A15: Proportion of building blocks year that is in PV period | B15: =Timing!F29 -> 0.7479452055
A16: Calculations
A17: Roll forward of existing assets | C17: Early base year | D17: Base year | E17: Gap year | F17: First year of reg period
A18: BBAR year ending in calendar year: | C18: =C$4 -> 2020 | D18: =D$4 -> 2021 | E18: 2022 | F18: 2023 | G18: 2024 | H18: =H$4 -> 2025 | I18: 2026 | J18: 2027
A19: Remaining asset life for existing assets | C19: =IF(EarlyBaseYear,100%*C5/C6,"~") -> ~ | D19: =IF(EarlyBaseYear,C19-1,100%*D5/D6) -> 34.23651845 | E19: =D19-1 -> 33.23651845 | F19: =IF(EarlyBaseYear,B12*C5/C6-3,B12*D5/D6-2) -> 20.57386876 | G19: =F19-1 -> 19.57386876 | H19: =G19-1 -> 18.57386876 | I19: 17.57386876 | J19: 16.57386876 | M19: 4.2.2(3)(a) | N19: 4.2.2(3)(a)
A20: Opening RAB value for existing assets | C20: =IF(EarlyBaseYear,C5,"~") -> ~ | D20: =IF(EarlyBaseYear,C24,D5) -> 434256 | E20: =D24 -> 451131 | F20: =E24 -> 465838.7915 | G20: 455185.6305 | H20: =G24 -> 442276.8547 | I20: 427187.0332 | J20: 411297.1197 | M20: 4.2.1(2)(b) | N20: 4.2.1(2)(b)
A21: Value of disposed assets | D21: =D8 -> 280 | E21: 105.0678636 | F21: 107.7996281 | G21: 110.2790195 | H21: 112.4845999 | I21: 114.7342919 | J21: 117.0289778 | L21: simple ref
A22: Revaluation for existing assets | D22: =(D20*0.999-D21)*D11 -> 14492.79947 | E22: 28386.21247 | F22: 12096.89398 | G22: 10456.26381 | H22: 8834.441866 | I22: 8532.902237 | J22: 8215.375872 | M22: 4.2.3(2)(a) | N22: 4.2.3(2)(a)
A23: Depreciation for existing assets | D23: =D20/D19 -> 12684 | E23: 13573.35308 | F23: 22642.25542 | G23: 23254.76052 | H23: =H20/H19 -> 23811.77882 | I23: 24308.08145 | J23: 24815.99955 | M23: 4.2.2(2)(a)(ii) | N23: 4.2.2(2)(a)(ii)
A24: Closing RAB value for existing assets | C24: =IF(EarlyBaseYear,C7,"~") -> ~ | D24: =IF(EarlyBaseYear,D20-D21+D22-D23,D7) -> 451131 | E24: =E20-E21+E22-E23 -> 465838.7915 | F24: 455185.6305 | G24: 442276.8547 | H24: =H20-H21+H22-H23 -> 427187.0332 | I24: 411297.1197 | J24: 394579.467 | M24: 4.2.1(3)(b) | N24: 4.2.1(3)(b)
A25: Total depreciation over four disclosure years, starting 2022/23 | B25: =SUM(F23:I23) -> 94016.8762
A26: Individual roll forward of additional assets
A27: BBAR year ending in calendar year: | D27: =D$4 -> 2021 | E27: 2022 | F27: 2023 | G27: 2024 | H27: =H$4 -> 2025 | I27: 2026 | J27: 2027
A28: Value of commissioned assets | D28: =D$9 -> 15572 | E28: 7573.743649 | F28: 6788.752246 | G28: 6162.44264 | H28: =H$9 -> 6867.068833 | I28: 7880.523059 | J28: 8310.031422 | L28: simple ref
A29: =" Assets commissioned in yr ending " & C30 -> Assets commissioned in yr ending 2021
A30: Year asset is added during modelling period | C30: =D27 -> 2021
A31: Opening RAB | D31: 0 | E31: =D36 -> 0 | F31: 0 | G31: 0 | H31: =G36 -> 0 | I31: 0 | J31: 0 | M31: 4.2.1(4) | N31: 4.2.1(4)
A32: Years of remaining life | D32: =B10 -> 45 | E32: =D32-1 -> 44 | F32: =(E32-1)*B13 -> 28.35207552 | G32: =F32-1 -> 27.35207552 | H32: =G32-1 -> 26.35207552 | I32: 25.35207552 | J32: 24.35207552 | M32: 4.2.2(3)(b) | N32: 4.2.2(3)(b)
A33: Revaluation of assets | D33: =D31*D$11 -> 0 | E33: =E31*E$11 -> 0 | F33: 0 | G33: 0 | H33: 0 | I33: 0 | J33: 0 | M33: 4.2.3(2) | N33: 4.2.3(2)
A34: Depreciation of assets | D34: =D31/D32 -> 0 | E34: 0 | F34: 0 | G34: 0 | H34: =H31/H32 -> 0 | I34: 0 | J34: 0 | M34: 4.2.2(2)(b) | N34: 4.2.2(2)(b)
A35: ="RAB of asset commissioned in year ending " & C30 -> RAB of asset commissioned in year ending 2021 | D35: =IF(EarlyBaseYear,D$28,0) -> 0 | E35: =IF($C30=E$27,E$28,0) -> 0 | F35: 0 | G35: 0 | H35: 0 | I35: 0 | J35: 0
A36: Closing RAB | D36: =D31+D33-D34+D35 -> 0 | E36: =E31+E33-E34+E35 -> 0 | F36: =F31+F33-F34+F35 -> 0 | G36: 0 | H36: =H31+H33-H34+H35 -> 0 | I36: 0 | J36: 0 | M36: 4.2.1(5)(b) | N36: 4.2.1(5)(b)
A37: =" Assets commissioned in yr ending " & C38 -> Assets commissioned in yr ending 2022
A38: Year asset is added during modelling period | C38: =E27 -> 2022
A39: Opening RAB | D39: 0 | E39: =D44 -> 0 | F39: 7573.743649 | G39: 7509.600268 | H39: =G44 -> 7414.230466 | I39: 7288.030106 | J39: 7153.60499 | M39: =M31 -> 4.2.1(4) | N39: 4.2.1(4)
A40: Years of remaining life | D40: =$B$10+$C38-D$27 -> 46 | E40: =D40-1 -> 45 | F40: =(E40-1)*B13 -> 29.01142612 | G40: =F40-1 -> 28.01142612 | H40: =G40-1 -> 27.01142612 | I40: 26.01142612 | J40: 25.01142612 | M40: 4.2.2(3)(b) | N40: 4.2.2(3)(b)
A41: Revaluation of assets | D41: =D39*D$11 -> 0 | E41: =E39*E$11 -> 0 | F41: 196.9173349 | G41: 172.7208062 | H41: 148.2846093 | I41: 145.7606021 | J41: 143.0720998 | M41: 4.2.3(2) | N41: 4.2.3(2)
A42: Depreciation of assets | D42: =D39/D40 -> 0 | E42: 0 | F42: 261.0607151 | G42: 268.0906083 | H42: =H39/H40 -> 274.4849692 | I42: 280.1857181 | J42: 286.0134787 | M42: 4.2.2(2)(b) | N42: 4.2.2(2)(b)
A43: ="RAB of asset commissioned in year ending " & C38 -> RAB of asset commissioned in year ending 2022 | D43: =IF($C38=D$27,D$28,0) -> 0 | E43: 7573.743649 | F43: 0 | G43: 0 | H43: 0 | I43: 0 | J43: 0
A44: Closing RAB | D44: =D39+D41-D42+D43 -> 0 | E44: =E39+E41-E42+E43 -> 7573.743649 | F44: =F39+F41-F42+F43 -> 7509.600268 | G44: 7414.230466 | H44: =H39+H41-H42+H43 -> 7288.030106 | I44: 7153.60499 | J44: 7010.663611 | M44: 4.2.1(5)(b) | N44: 4.2.1(5)(b)
A45: =" Assets commissioned in yr ending " & C46 -> Assets commissioned in yr ending 2023
A46: Year asset is added during modelling period | C46: =F27 -> 2023
A47: Opening RAB | D47: 0 | E47: =D52 -> 0 | F47: 0 | G47: 6788.752246 | H47: =G52 -> 6708.110557 | I47: 6599.846954 | J47: 6484.387772 | M47: =M39 -> 4.2.1(4) | N47: 4.2.1(4)
A48: Years of remaining life | D48: =$B$10+$C46-D$27 -> 47 | E48: =D48-1 -> 46 | F48: =(E48-1)*B13 -> 29.67077671 | G48: =F48-1 -> 28.67077671 | H48: =G48-1 -> 27.67077671 | I48: 26.67077671 | J48: 25.67077671 | M48: 4.2.2(3)(b) | N48: 4.2.2(3)(b)
A49: Revaluation of assets | D49: =D47*D$11 -> 0 | E49: =E47*E$11 -> 0 | F49: 0 | G49: 156.1413016 | H49: 134.1622111 | I49: 131.9969391 | J49: 129.6877554 | M49: 4.2.3(2) | N49: 4.2.3(2)
A50: Depreciation of assets | D50: =D47/D48 -> 0 | E50: 0 | F50: 0 | G50: 236.7829904 | H50: =H47/H48 -> 242.4258136 | I50: 247.4561212 | J50: 252.5980357 | M50: 4.2.2(2)(b) | N50: 4.2.2(2)(b)
A51: ="RAB of asset commissioned in year ending " & C46 -> RAB of asset commissioned in year ending 2023 | D51: =IF($C46=D$27,D$28,0) -> 0 | E51: 0 | F51: 6788.752246 | G51: 0 | H51: 0 | I51: 0 | J51: 0
A52: Closing RAB | D52: =D47+D49-D50+D51 -> 0 | E52: =E47+E49-E50+E51 -> 0 | F52: 6788.752246 | G52: 6708.110557 | H52: =H47+H49-H50+H51 -> 6599.846954 | I52: 6484.387772 | J52: 6361.477492 | M52: 4.2.1(5)(b) | N52: 4.2.1(5)(b)
A53: =" Assets commissioned in yr ending " & C54 -> Assets commissioned in yr ending 2024
A54: Year asset is added during modelling period | C54: =G27 -> 2024
A55: Opening RAB | D55: 0 | E55: =D60 -> 0 | F55: 0 | G55: 0 | H55: =G60 -> 6162.44264 | I55: 6068.168903 | J55: 5967.500059 | M55: =M47 -> 4.2.1(4) | N55: 4.2.1(4)
A56: Years of remaining life | D56: =$B$10+$C54-D$27 -> 48 | E56: =D56-1 -> 47 | F56: =(E56-1)*B13 -> 30.33012731 | G56: =F56-1 -> 29.33012731 | H56: =G56-1 -> 28.33012731 | I56: 27.33012731 | J56: 26.33012731 | M56: 4.2.2(3)(b) | N56: 4.2.2(3)(b)
A57: Revaluation of assets | D57: =D55*D$11 -> 0 | E57: =E55*E$11 -> 0 | F57: 0 | G57: 0 | H57: 123.2488528 | I57: 121.3633781 | J57: 119.3500012 | M57: 4.2.3(2) | N57: 4.2.3(2)
A58: Depreciation of assets | D58: =D55/D56 -> 0 | E58: 0 | F58: 0 | G58: 0 | H58: =H55/H56 -> 217.5225891 | I58: 222.0322224 | J58: 226.6415194 | M58: 4.2.2(2)(b) | N58: 4.2.2(2)(b)
A59: ="RAB of asset commissioned in year ending " & C54 -> RAB of asset commissioned in year ending 2024 | D59: =IF($C54=D$27,D$28,0) -> 0 | E59: 0 | F59: 0 | G59: 6162.44264 | H59: 0 | I59: 0 | J59: 0
A60: Closing RAB | D60: =D55+D57-D58+D59 -> 0 | E60: =E55+E57-E58+E59 -> 0 | F60: 0 | G60: 6162.44264 | H60: =H55+H57-H58+H59 -> 6068.168903 | I60: 5967.500059 | J60: 5860.208541 | M60: 4.2.1(5)(b) | N60: 4.2.1(5)(b)
A61: =" Assets commissioned in yr ending " & C62 -> Assets commissioned in yr ending 2025
A62: Year asset is added during modelling period | C62: =H27 -> 2025
A63: Opening RAB | D63: 0 | E63: =D68 -> 0 | F63: 0 | G63: 0 | H63: =G68 -> 0 | I63: 6867.068833 | J63: 6759.065553 | M63: =M55 -> 4.2.1(4) | N63: 4.2.1(4)
A64: Years of remaining life | D64: =$B$10+$C62-D$27 -> 49 | E64: =D64-1 -> 48 | F64: =(E64-1)*B13 -> 30.9894779 | G64: =F64-1 -> 29.9894779 | H64: =G64-1 -> 28.9894779 | I64: 27.9894779 | J64: 26.9894779 | M64: 4.2.2(3)(b) | N64: 4.2.2(3)(b)
A65: Revaluation of assets | D65: =D63*D$11 -> 0 | E65: =E63*E$11 -> 0 | F65: 0 | G65: 0 | H65: 0 | I65: 137.3413767 | J65: 135.1813111 | M65: 4.2.3(2) | N65: 4.2.3(2)
A66: Depreciation of assets | D66: =D63/D64 -> 0 | E66: 0 | F66: 0 | G66: 0 | H66: =H63/H64 -> 0 | I66: 245.3446562 | J66: 250.433357 | M66: 4.2.2(2)(b) | N66: 4.2.2(2)(b)
A67: ="RAB of asset commissioned in year ending " & C62 -> RAB of asset commissioned in year ending 2025 | D67: =IF($C62=D$27,D$28,0) -> 0 | E67: 0 | F67: 0 | G67: 0 | H67: 6867.068833 | I67: 0 | J67: 0
A68: Closing RAB | D68: =D63+D65-D66+D67 -> 0 | E68: =E63+E65-E66+E67 -> 0 | F68: 0 | G68: 0 | H68: =H63+H65-H66+H67 -> 6867.068833 | I68: 6759.065553 | J68: 6643.813507 | M68: 4.2.1(5)(b) | N68: 4.2.1(5)(b)
A69: =" Assets commissioned in yr ending " & C70 -> Assets commissioned in yr ending 2026
A70: Year asset is added during modelling period | C70: =I27 -> 2026
A71: Opening RAB | D71: 0 | E71: =D76 -> 0 | F71: 0 | G71: 0 | H71: =G76 -> 0 | I71: 0 | J71: 7880.523059 | M71: =M63 -> 4.2.1(4) | N71: 4.2.1(4)
A72: Years of remaining life | D72: =$B$10+$C70-D$27 -> 50 | E72: =D72-1 -> 49 | F72: =(E72-1)*B13 -> 31.64882849 | G72: =F72-1 -> 30.64882849 | H72: =G72-1 -> 29.64882849 | I72: 28.64882849 | J72: 27.64882849 | M72: 4.2.2(3)(b) | N72: 4.2.2(3)(b)
A73: Revaluation of assets | D73: =D71*D$11 -> 0 | E73: =E71*E$11 -> 0 | F73: 0 | G73: 0 | H73: 0 | I73: 0 | J73: 157.6104612 | M73: 4.2.3(2) | N73: 4.2.3(2)
A74: Depreciation of assets | D74: =D71/D72 -> 0 | E74: 0 | F74: 0 | G74: 0 | H74: =H71/H72 -> 0 | I74: 0 | J74: 285.0219517 | M74: 4.2.2(2)(b) | N74: 4.2.2(2)(b)
A75: ="RAB of asset commissioned in year ending " & C70 -> RAB of asset commissioned in year ending 2026 | D75: =IF($C70=D$27,D$28,0) -> 0 | E75: 0 | F75: 0 | G75: 0 | H75: 0 | I75: 7880.523059 | J75: 0
A76: Closing RAB | D76: =D71+D73-D74+D75 -> 0 | E76: =E71+E73-E74+E75 -> 0 | F76: 0 | G76: 0 | H76: =H71+H73-H74+H75 -> 0 | I76: 7880.523059 | J76: 7753.111569 | M76: 4.2.1(5)(b) | N76: 4.2.1(5)(b)
A77: =" Assets commissioned in yr ending " & C78 -> Assets commissioned in yr ending 2027
A78: Year asset is added during modelling period | C78: =J27 -> 2027
A79: Opening RAB | D79: 0 | E79: =D84 -> 0 | F79: 0 | G79: 0 | H79: =G84 -> 0 | I79: 0 | J79: 0 | M79: =M71 -> 4.2.1(4) | N79: 4.2.1(4)
A80: Years of remaining life | D80: =$B$10+$C78-D$27 -> 51 | E80: =D80-1 -> 50 | F80: =(E80-1)*B13 -> 32.30817909 | G80: =F80-1 -> 31.30817909 | H80: =G80-1 -> 30.30817909 | I80: 29.30817909 | J80: 28.30817909 | M80: 4.2.2(3)(b) | N80: 4.2.2(3)(b)
A81: Revaluation of assets | D81: =D79*D$11 -> 0 | E81: =E79*E$11 -> 0 | F81: 0 | G81: 0 | H81: 0 | I81: 0 | J81: 0 | M81: 4.2.3(2) | N81: 4.2.3(2)
A82: Depreciation of assets | D82: =D79/D80 -> 0 | E82: 0 | F82: 0 | G82: 0 | H82: =H79/H80 -> 0 | I82: 0 | J82: 0 | M82: 4.2.2(2)(b) | N82: 4.2.2(2)(b)
A83: ="RAB of asset commissioned in year ending " & C78 -> RAB of asset commissioned in year ending 2027 | D83: =IF($C78=D$27,D$28,0) -> 0 | E83: 0 | F83: 0 | G83: 0 | H83: 0 | I83: 0 | J83: 8310.031422
A84: Closing RAB | D84: =D79+D81-D82+D83 -> 0 | E84: =E79+E81-E82+E83 -> 0 | F84: 0 | G84: 0 | H84: =H79+H81-H82+H83 -> 0 | I84: 0 | J84: 8310.031422 | M84: 4.2.1(5)(b) | N84: 4.2.1(5)(b)
A85: Aggregate roll forward of additional assets
A86: Opening RAB of commissioned additional assets | D86: =D31+D39+D47+D55+D63+D71+D79 -> 0 | E86: =D89 -> 0 | F86: =E89 -> 7573.743649 | G86: 14298.35251 | H86: =G89 -> 20284.78366 | I86: 26823.1148 | J86: 34245.08143 | M86: 4.2.1(4) | N86: 4.2.1(4)
A87: Revaluation of commissioned additional assets | D87: =D33+D41+D49+D57+D65+D73+D81 -> 0 | E87: 0 | F87: 196.9173349 | G87: 328.8621078 | H87: 405.6956733 | I87: 536.4622959 | J87: 684.9016287
A88: Depreciation of commissioned additional assets | D88: 0 | E88: 0 | F88: 261.0607151 | G88: 504.8735987 | H88: 734.4333718 | I88: 995.0187179 | J88: 1300.708342
A89: Closing RAB of commissioned additional assets | D89: =D36+D44+D52+D60+D68+D76+D84 -> 0 | E89: 7573.743649 | F89: 14298.35251 | G89: 20284.78366 | H89: 26823.1148 | I89: 34245.08143 | J89: 41939.30614
A90: Combined roll forward of existing and additional assets
A91: BBAR year ending in calendar year: | D91: =D$4 -> 2021 | E91: 2022 | F91: 2023 | G91: 2024 | H91: =H$4 -> 2025 | I91: 2026 | J91: 2027
A92: Aggregate opening RAB value | D92: =D20+D86 -> 434256 | E92: 451131 | F92: 473412.5352 | G92: 469483.983 | H92: 462561.6384 | I92: 454010.148 | J92: 445542.2011 | M92: 4.2.1(1) | N92: 4.2.1(1)
A93: Total revaluation | D93: =D22+D87 -> 14492.79947 | E93: 28386.21247 | F93: 12293.81132 | G93: 10785.12592 | H93: 9240.137539 | I93: 9069.364533 | J93: 8900.2775 | M93: 4.2.3(1) | N93: 4.2.3(1)
A94: Total depreciation | D94: 12684 | E94: 13573.35308 | F94: 22903.31614 | G94: 23759.63412 | H94: 24546.21219 | I94: 25303.10016 | J94: 26116.70789 | M94: 4.2.2(1) | N94: 4.2.2(1)
A95: Aggregate closing RAB value | E95: =E24+E89 -> 473412.5352 | F95: 469483.983 | G95: 462561.6384 | H95: 454010.148 | I95: 445542.2011 | J95: 436518.7732
A96: Check that closing value is as expected. Should = 0 | E96: =E92+E28+E93-E94-E21-E95 -> 0 | F96: 0 | G96: 0 | H96: 0 | I96: 0 | J96: 0
A98: Outputs
A99: BBAR year ending in calendar year: | C99: =C$4 -> 2020 | D99: 2021 | E99: 2022 | F99: 2023 | G99: 2024 | H99: =H$4 -> 2025 | I99: 2026 | J99: 2027
A100: Value of commissioned assets
A101: Remaining asset life for existing assets | D101: =D19 -> 34.23651845 | E101: 33.23651845 | F101: 20.57386876 | G101: 19.57386876 | H101: 18.57386876 | I101: 17.57386876 | J101: 16.57386876 | L101: simple ref
A102: Total depreciation | D102: =D94 -> 12684 | E102: 13573.35308 | F102: 22903.31614 | G102: 23759.63412 | H102: =H94 -> 24546.21219 | I102: 25303.10016 | J102: 26116.70789 | L102: simple ref
A103: Aggregate opening RAB value | C103: =C20 -> ~ | D103: =D92 -> 434256 | E103: =E92 -> 451131 | F103: 473412.5352 | G103: 469483.983 | H103: =H92 -> 462561.6384 | I103: 454010.148 | J103: 445542.2011 | L103: simple ref
A104: Total revaluation | F104: =F93 -> 12293.81132 | G104: 10785.12592 | H104: =H93 -> 9240.137539 | I104: 9069.364533 | J104: 8900.2775 | L104: simple ref
A105: Closing RAB value, 4th BBAR year | B105: =J95 -> 436518.7732
A106: Total depreciation over 4 dislosure years, starting 2022/2023 | B106: =B25 -> 94016.8762
A107: Remaining Asset Life for Existing Assets in 2023 adjusted / Transitional Adjusted Asset Life | B107: =F19 -> 20.57386876

Sheet Tax
A1: Tax calculations | B1: Values, not time series | C1: Early base year | D1: Standard base year | E1: Gap year | F1: 1st BBAR year | G1: 2nd BBAR year | H1: 3rd BBAR year | I1: 4th BBAR year | J1: 5th BBAR year | K1: Spec ref | L1: GTB IM reference | M1: GDB IM reference
A2: Calculation of adjusted depreciation, tax depreciation, deferred tax, notional deductible interest and regulatory tax adjustments.
A3: Inputs | J3: =GPB_name -> Vector
A4: BBAR year ending in calendar year: | C4: ='GPB data'!C18 -> 2020 | D4: ='GPB data'!D18 -> 2021 | E4: ='GPB data'!E18 -> 2022 | F4: ='GPB data'!F18 -> 2023 | G4: ='GPB data'!G18 -> 2024 | H4: ='GPB data'!H18 -> 2025 | I4: ='GPB data'!I18 -> 2026 | J4: ='GPB data'!J18 -> 2027 | K4: GPB data
A5: Corporate tax rate | C5: ='GPB data'!C23 -> 0.28 | D5: ='GPB data'!D23 -> 0.28 | E5: ='GPB data'!E23 -> 0.28 | F5: ='GPB data'!F23 -> 0.28 | G5: ='GPB data'!G23 -> 0.28 | H5: ='GPB data'!H23 -> 0.28 | I5: ='GPB data'!I23 -> 0.28 | J5: ='GPB data'!J23 -> 0.28 | K5: GPB data
A6: Value of commissioned assets | C6: ='GPB data'!C77 -> 0 | D6: ='GPB data'!D77 -> 15572 | E6: ='GPB data'!E77 -> 7573.743649 | F6: ='GPB data'!F77 -> 6788.752246 | G6: ='GPB data'!G77 -> 6162.44264 | H6: ='GPB data'!H77 -> 6867.068833 | I6: ='GPB data'!I77 -> 7880.523059 | J6: ='GPB data'!J77 -> 8310.031422 | K6: RAB
A7: Remaining life for additional assets | D7: ='GPB data'!B10 -> 45 | K7: GPB data
A8: Amortisation of initial differences in asset values | B8: ='GPB data'!B43 -> 2452.34375 | K8: GPB data
A9: Value of disposed assets | D9: ='GPB data'!D88 -> 280 | E9: ='GPB data'!E88 -> 105.0678636 | F9: ='GPB data'!F88 -> 107.7996281 | G9: ='GPB data'!G88 -> 110.2790195 | H9: ='GPB data'!H88 -> 112.4845999 | I9: ='GPB data'!I88 -> 114.7342919 | J9: ='GPB data'!J88 -> 117.0289778 | K9: RAB
A10: Opening RAB excluding revaluations | C10: ='GPB data'!C37 -> ~ | D10: ='GPB data'!D37 -> 387877 | K10: GPB data
A11: Adjusted depreciation | C11: ='GPB data'!C38 -> ~ | D11: ='GPB data'!D38 -> 11347 | K11: GPB data
A12: Tax depreciation | C12: ='GPB data'!C39 -> ~ | D12: ='GPB data'!D39 -> 18496 | K12: GPB data
A13: Opening regulatory tax asset value | C13: ='GPB data'!C40 -> ~ | D13: ='GPB data'!D40 -> 178920 | K13: GPB data
A14: Opening deferred tax balance | C14: ='GPB data'!C42 -> ~ | D14: ='GPB data'!D42 -> -33959 | K14: GPB data
A15: Cost of debt | D15: ='GPB data'!B8 -> 0.0404 | K15: GPB data
A16: Leverage | D16: ='GPB data'!B9 -> 0.42 | K16: GPB data
A17: Remaining asset life for existing assets | D17: =RAB!D101 -> 34.23651845 | E17: =RAB!E101 -> 33.23651845 | F17: =RAB!F101 -> 20.57386876 | G17: =RAB!G101 -> 19.57386876 | H17: =RAB!H101 -> 18.57386876 | I17: =RAB!I101 -> 17.57386876 | J17: =RAB!J101 -> 16.57386876 | K17: RAB
A18: Total depreciation | F18: =RAB!F102 -> 22903.31614 | G18: =RAB!G102 -> 23759.63412 | H18: =RAB!H102 -> 24546.21219 | I18: =RAB!I102 -> 25303.10016 | J18: =RAB!J102 -> 26116.70789 | K18: RAB
A19: Term credit spread differential allowance, full BBAR years | F19: =BBAR!F92 -> 430.3011025 | G19: =BBAR!G92 -> 426.7303049 | H19: =BBAR!H92 -> 420.4383454 | I19: =BBAR!I92 -> 412.6655986 | J19: =BBAR!J92 -> 404.9687875 | K19: BBAR
A20: Opening investment value | F20: =BBAR!F94 -> 434285.1506 | G20: =BBAR!G94 -> 430126.8222 | H20: =BBAR!H94 -> 423337.8007 | I20: =BBAR!I94 -> 415264.5068 | J20: =BBAR!J94 -> 407577.3674 | K20: BBAR
A21: Calculations
A22: Adjusted RAB & depreciation of assets commissioned
A23: BBAR year ending in calendar year: | D23: =D$4 -> 2021 | E23: =E$4 -> 2022 | F23: 2023 | G23: 2024 | H23: =H$4 -> 2025 | I23: 2026 | J23: 2027
A24: Value of commissioned assets | D24: =D6 -> 15572 | E24: 7573.743649 | F24: 6788.752246 | G24: 6162.44264 | H24: 6867.068833 | I24: 7880.523059 | J24: 8310.031422 | K24: simple ref
A25: ="Assets commissioned in year ending " & C25 -> Assets commissioned in year ending 2021 | C25: =D23 -> 2021
A26: Opening RAB, adjusted depreciation | D26: 0 | E26: =D30 -> 0 | F26: 0 | G26: 0 | H26: =G30 -> 0 | I26: 0 | J26: 0 | L26: n/a | M26: 4.2.1(3)(b)adj
A27: Years of remaining life | D27: =RAB!D32 -> 45 | E27: =RAB!E32 -> 44 | F27: =RAB!F32 -> 28.35207552 | G27: =RAB!G32 -> 27.35207552 | H27: =RAB!H32 -> 26.35207552 | I27: =RAB!I32 -> 25.35207552 | J27: =RAB!J32 -> 24.35207552 | L27: n/a | M27: 4.2.2(3)(b)adj
A28: Adjusted depreciation | D28: =D26/D27 -> 0 | E28: 0 | F28: 0 | G28: 0 | H28: =H26/H27 -> 0 | I28: 0 | J28: 0 | L28: n/a | M28: 4.2.2(2)(b)adj
A29: ="RAB of asset commissioned in year ending " & C25 -> RAB of asset commissioned in year ending 2021 | D29: =IF(EarlyBaseYear,D$24,0) -> 0 | E29: =IF($C25=E$23,E$24,0) -> 0 | F29: =IF($C25=F$23,F$24,0) -> 0 | G29: 0 | H29: =IF($C25=H$23,H$24,0) -> 0 | I29: 0 | J29: 0
A30: Closing RAB, adjusted depreciation | D30: =D26-D28+D29 -> 0 | E30: =E26-E28+E29 -> 0 | F30: =F26-F28+F29 -> 0 | G30: 0 | H30: =H26-H28+H29 -> 0 | I30: 0 | J30: 0 | L30: n/a | M30: 4.2.1(5)(b)
A31: ="Assets commissioned in year ending " & C31 -> Assets commissioned in year ending 2022 | C31: =E23 -> 2022
A32: Opening RAB, adjusted depreciation | D32: 0 | E32: =D36 -> 0 | F32: =E36 -> 7573.743649 | G32: 7312.682933 | H32: =G36 -> 7051.622218 | I32: 6790.561503 | J32: 6529.500788 | L32: =L26 -> n/a | M32: 4.2.1(3)(b)adj
A33: Years of remaining life | D33: =RAB!D40 -> 46 | E33: =RAB!E40 -> 45 | F33: =RAB!F40 -> 29.01142612 | G33: =RAB!G40 -> 28.01142612 | H33: =RAB!H40 -> 27.01142612 | I33: =RAB!I40 -> 26.01142612 | J33: =RAB!J40 -> 25.01142612 | L33: n/a | M33: 4.2.2(3)(b)adj
A34: Adjusted depreciation | D34: =D32/D33 -> 0 | E34: 0 | F34: 261.0607151 | G34: 261.0607151 | H34: =H32/H33 -> 261.0607151 | I34: 261.0607151 | J34: 261.0607151 | L34: n/a | M34: 4.2.2(2)(b)adj
A35: ="RAB of asset commissioned in year ending " & C31 -> RAB of asset commissioned in year ending 2022 | D35: =IF($C31=D$23,D$24,0) -> 0 | E35: =IF($C31=E$23,E$24,0) -> 7573.743649 | F35: =IF($C31=F$23,F$24,0) -> 0 | G35: 0 | H35: =IF($C31=H$23,H$24,0) -> 0 | I35: 0 | J35: 0
A36: Closing RAB, adjusted depreciation | D36: =D32-D34+D35 -> 0 | E36: =E32-E34+E35 -> 7573.743649 | F36: 7312.682933 | G36: 7051.622218 | H36: =H32-H34+H35 -> 6790.561503 | I36: 6529.500788 | J36: 6268.440073 | L36: =L30 -> n/a | M36: =M30 -> 4.2.1(5)(b)
A37: ="Assets commissioned in year ending " & C37 -> Assets commissioned in year ending 2023 | C37: =F23 -> 2023
A38: Opening RAB, adjusted depreciation | D38: 0 | E38: =D42 -> 0 | F38: 0 | G38: 6788.752246 | H38: =G42 -> 6551.969255 | I38: 6315.186265 | J38: 6078.403274 | L38: =L32 -> n/a | M38: 4.2.1(3)(b)adj
A39: Years of remaining life | D39: =RAB!D48 -> 47 | E39: =RAB!E48 -> 46 | F39: =RAB!F48 -> 29.67077671 | G39: =RAB!G48 -> 28.67077671 | H39: =RAB!H48 -> 27.67077671 | I39: =RAB!I48 -> 26.67077671 | J39: =RAB!J48 -> 25.67077671 | L39: n/a | M39: 4.2.2(3)(b)adj
A40: Adjusted depreciation | D40: =D38/D39 -> 0 | E40: 0 | F40: 0 | G40: 236.7829904 | H40: =H38/H39 -> 236.7829904 | I40: 236.7829904 | J40: 236.7829904 | L40: n/a | M40: 4.2.2(2)(b)adj
A41: ="RAB of asset commissioned in year ending " & C37 -> RAB of asset commissioned in year ending 2023 | D41: =IF($C37=D$23,D$24,0) -> 0 | E41: =IF($C37=E$23,E$24,0) -> 0 | F41: =IF($C37=F$23,F$24,0) -> 6788.752246 | G41: 0 | H41: =IF($C37=H$23,H$24,0) -> 0 | I41: 0 | J41: 0
A42: Closing RAB, adjusted depreciation | D42: =D38-D40+D41 -> 0 | E42: 0 | F42: 6788.752246 | G42: 6551.969255 | H42: =H38-H40+H41 -> 6315.186265 | I42: 6078.403274 | J42: 5841.620284 | L42: =L36 -> n/a | M42: =M36 -> 4.2.1(5)(b)
A43: ="Assets commissioned in year ending " & C43 -> Assets commissioned in year ending 2024 | C43: =G23 -> 2024
A44: Opening RAB, adjusted depreciation | D44: 0 | E44: =D48 -> 0 | F44: 0 | G44: 0 | H44: =G48 -> 6162.44264 | I44: 5944.92005 | J44: 5727.397461 | L44: =L38 -> n/a | M44: 4.2.1(3)(b)adj
A45: Years of remaining life | D45: =RAB!D56 -> 48 | E45: =RAB!E56 -> 47 | F45: =RAB!F56 -> 30.33012731 | G45: =RAB!G56 -> 29.33012731 | H45: =RAB!H56 -> 28.33012731 | I45: =RAB!I56 -> 27.33012731 | J45: =RAB!J56 -> 26.33012731 | L45: n/a | M45: 4.2.2(3)(b)adj
A46: Adjusted depreciation | D46: =D44/D45 -> 0 | E46: 0 | F46: 0 | G46: 0 | H46: =H44/H45 -> 217.5225891 | I46: 217.5225891 | J46: 217.5225891 | L46: n/a | M46: 4.2.2(2)(b)adj
A47: ="RAB of asset commissioned in year ending " & C43 -> RAB of asset commissioned in year ending 2024 | D47: =IF($C43=D$23,D$24,0) -> 0 | E47: =IF($C43=E$23,E$24,0) -> 0 | F47: =IF($C43=F$23,F$24,0) -> 0 | G47: 6162.44264 | H47: =IF($C43=H$23,H$24,0) -> 0 | I47: 0 | J47: 0
A48: Closing RAB, adjusted depreciation | D48: =D44-D46+D47 -> 0 | E48: 0 | F48: 0 | G48: 6162.44264 | H48: =H44-H46+H47 -> 5944.92005 | I48: 5727.397461 | J48: 5509.874872 | L48: =L42 -> n/a | M48: =M42 -> 4.2.1(5)(b)
A49: ="Assets commissioned in year ending " & C49 -> Assets commissioned in year ending 2025 | C49: =H23 -> 2025
A50: Opening RAB, adjusted depreciation | D50: 0 | E50: =D54 -> 0 | F50: 0 | G50: 0 | H50: =G54 -> 0 | I50: 6867.068833 | J50: 6621.724176 | L50: =L44 -> n/a | M50: 4.2.1(3)(b)adj
A51: Years of remaining life | D51: =RAB!D64 -> 49 | E51: =RAB!E64 -> 48 | F51: =RAB!F64 -> 30.9894779 | G51: =RAB!G64 -> 29.9894779 | H51: =RAB!H64 -> 28.9894779 | I51: =RAB!I64 -> 27.9894779 | J51: =RAB!J64 -> 26.9894779 | L51: n/a | M51: 4.2.2(3)(b)adj
A52: Adjusted depreciation | D52: =D50/D51 -> 0 | E52: 0 | F52: 0 | G52: 0 | H52: =H50/H51 -> 0 | I52: 245.3446562 | J52: 245.3446562 | L52: n/a | M52: 4.2.2(2)(b)adj
A53: ="RAB of asset commissioned in year ending " & C49 -> RAB of asset commissioned in year ending 2025 | D53: =IF($C49=D$23,D$24,0) -> 0 | E53: =IF($C49=E$23,E$24,0) -> 0 | F53: =IF($C49=F$23,F$24,0) -> 0 | G53: 0 | H53: =IF($C49=H$23,H$24,0) -> 6867.068833 | I53: 0 | J53: 0
A54: Closing RAB, adjusted depreciation | D54: =D50-D52+D53 -> 0 | E54: 0 | F54: 0 | G54: 0 | H54: =H50-H52+H53 -> 6867.068833 | I54: 6621.724176 | J54: 6376.37952 | L54: =L48 -> n/a | M54: =M48 -> 4.2.1(5)(b)
A55: ="Assets commissioned in year ending " & C55 -> Assets commissioned in year ending 2026 | C55: =I23 -> 2026
A56: Opening RAB, adjusted depreciation | D56: 0 | E56: =D60 -> 0 | F56: 0 | G56: 0 | H56: =G60 -> 0 | I56: 0 | J56: 7880.523059 | L56: =L50 -> n/a | M56: 4.2.1(3)(b)adj
A57: Years of remaining life | D57: =RAB!D72 -> 50 | E57: =RAB!E72 -> 49 | F57: =RAB!F72 -> 31.64882849 | G57: =RAB!G72 -> 30.64882849 | H57: =RAB!H72 -> 29.64882849 | I57: =RAB!I72 -> 28.64882849 | J57: =RAB!J72 -> 27.64882849 | L57: n/a | M57: 4.2.2(3)(b)adj
A58: Adjusted depreciation | D58: =D56/D57 -> 0 | E58: 0 | F58: 0 | G58: 0 | H58: =H56/H57 -> 0 | I58: 0 | J58: 285.0219517 | L58: n/a | M58: 4.2.2(2)(b)adj
A59: ="RAB of asset commissioned in year ending " & C55 -> RAB of asset commissioned in year ending 2026 | D59: =IF($C55=D$23,D$24,0) -> 0 | E59: =IF($C55=E$23,E$24,0) -> 0 | F59: =IF($C55=F$23,F$24,0) -> 0 | G59: 0 | H59: =IF($C55=H$23,H$24,0) -> 0 | I59: 7880.523059 | J59: 0
A60: Closing RAB, adjusted depreciation | D60: =D56-D58+D59 -> 0 | E60: 0 | F60: 0 | G60: 0 | H60: =H56-H58+H59 -> 0 | I60: 7880.523059 | J60: 7595.501107 | L60: =L54 -> n/a | M60: =M54 -> 4.2.1(5)(b)
A61: ="Assets commissioned in year ending " & C61 -> Assets commissioned in year ending 2027 | C61: =J23 -> 2027
A62: Opening RAB, adjusted depreciation | D62: 0 | E62: =D66 -> 0 | F62: 0 | G62: 0 | H62: =G66 -> 0 | I62: 0 | J62: 0 | L62: =L56 -> n/a | M62: 4.2.1(3)(b)adj
A63: Years of remaining life | D63: =RAB!D80 -> 51 | E63: =RAB!E80 -> 50 | F63: =RAB!F80 -> 32.30817909 | G63: =RAB!G80 -> 31.30817909 | H63: =RAB!H80 -> 30.30817909 | I63: =RAB!I80 -> 29.30817909 | J63: =RAB!J80 -> 28.30817909 | L63: n/a | M63: 4.2.2(3)(b)adj
A64: Adjusted depreciation | D64: =D62/D63 -> 0 | E64: 0 | F64: 0 | G64: 0 | H64: =H62/H63 -> 0 | I64: 0 | J64: 0 | L64: n/a | M64: 4.2.2(2)(b)adj
A65: ="RAB of asset commissioned in year ending " & C61 -> RAB of asset commissioned in year ending 2027 | D65: =IF($C61=D$23,D$24,0) -> 0 | E65: =IF($C61=E$23,E$24,0) -> 0 | F65: =IF($C61=F$23,F$24,0) -> 0 | G65: 0 | H65: =IF($C61=H$23,H$24,0) -> 0 | I65: 0 | J65: 8310.031422
A66: Closing RAB, adjusted depreciation | D66: =D62-D64+D65 -> 0 | E66: 0 | F66: 0 | G66: 0 | H66: =H62-H64+H65 -> 0 | I66: 0 | J66: 8310.031422 | L66: =L60 -> n/a | M66: =M60 -> 4.2.1(5)(b)
A67: Total assets commissioned
A68: Total adjusted depreciation of commissioned assets | D68: =D28+D34+D40+D46+D52+D58+D64 -> 0 | E68: =E28+E34+E40+E46+E52+E58+E64 -> 0 | F68: 261.0607151 | G68: 497.8437055 | H68: =H28+H34+H40+H46+H52+H58+H64 -> 715.3662945 | I68: 960.7109507 | J68: 1245.732902 | K68: spec | L68: n/a
A69: Adjusted depreciation of existing assets
A70: BBAR year ending in calendar year: | C70: =C$4 -> 2020 | D70: =D$4 -> 2021 | E70: =E$4 -> 2022 | F70: 2023 | G70: 2024 | H70: =H$4 -> 2025 | I70: 2026 | J70: 2027
A71: Opening RAB value of existing assets, adjusted depreciation | C71: =IF(EarlyBaseYear,C10,"~") -> ~ | D71: =IF(EarlyBaseYear,C75,D10) -> 387877 | E71: =D75 -> 391822 | F71: =E75 -> 379928.0319 | G71: 361353.699 | H71: =G75 -> 342782.394 | I71: 324214.8208 | J71: 305651.3986 | L71: n/a | M71: 4.2.1(2)(b)
A72: Disposed assets | D72: =D9 -> 280 | E72: 105.0678636 | F72: 107.7996281 | G72: 110.2790195 | H72: =H9 -> 112.4845999 | I72: 114.7342919 | J72: 117.0289778
A73: Adjusted depreciation of existing assets | C73: =IF(EarlyBaseYear,C11,"~") -> ~ | D73: =IF(EarlyBaseYear,D71/D17,D11) -> 11347 | E73: =E71/E17 -> 11788.90023 | F73: 18466.53327 | G73: 18461.02594 | H73: 18455.08862 | I73: 18448.68795 | J73: 18441.76535 | L73: n/a | M73: 4.2.2(2)(a)(ii)
A74: Base year commissioned assets | D74: =D6 -> 15572
A75: Closing RAB value of existing assets, adjusted depreciation | C75: =IF(EarlyBaseYear,C71-C72-C73+C74,"~") -> ~ | D75: =D71-D72-D73+D74 -> 391822 | E75: =E71-E72-E73 -> 379928.0319 | F75: 361353.699 | G75: 342782.394 | H75: 324214.8208 | I75: 305651.3986 | J75: 287092.6043 | L75: n/a | M75: 4.2.1(3)(b)adj
A76: Regulatory tax asset value
A77: BBAR year ending in calendar year: | C77: =C$4 -> 2020 | D77: =D$4 -> 2021 | E77: =E$4 -> 2022 | F77: 2023 | G77: 2024 | H77: =H$4 -> 2025 | I77: 2026 | J77: 2027
A78: Average DV rate | C78: =IF(EarlyBaseYear,C12/C13,"~") -> ~ | D78: =IF(EarlyBaseYear,C78,D12/D13) -> 0.1033758104 | L78: 4.3.3(3)(b) | M78: 4.3.5(3)(b)
A79: Opening regulatory tax asset value | C79: =IF(EarlyBaseYear,C13,"~") -> ~ | D79: =IF(EarlyBaseYear,C82,D13) -> 178920 | E79: =D82 -> 175996 | F79: =E82 -> 165376.0145 | G79: 155068.8872 | H79: =G82 -> 145200.958 | I79: 137057.7601 | J79: 130769.8261 | L79: 4.3.3(a)(ii) | M79: 4.3.5(3)(a)
A80: Tax depreciation | C80: =IF(EarlyBaseYear,C12,"~") -> ~ | D80: =D79*$D78 -> 18496 | E80: =E79*$D78 -> 18193.72913 | F80: 17095.87952 | G80: 16030.37189 | H80: =H79*$D78 -> 15010.26671 | I80: 14168.45703 | J80: 13518.43676 | L80: 4.3.3(2)(b) | M80: 4.3.5(2)(b)
A81: Value of commissioned assets | C81: =IF(EarlyBaseYear,C6,"~") -> ~ | D81: =D6 -> 15572 | E81: 7573.743649 | F81: 6788.752246 | G81: 6162.44264 | H81: 6867.068833 | I81: 7880.523059 | J81: 8310.031422 | K81: simple ref
A82: Closing regulatory tax asset value | C82: =IF(EarlyBaseYear,C79-C80+C81,"~") -> ~ | D82: =D79-D80+D81 -> 175996 | E82: =E79-E80+E81 -> 165376.0145 | F82: 155068.8872 | G82: 145200.958 | H82: =H79-H80+H81 -> 137057.7601 | I82: 130769.8261 | J82: 125561.4208 | L82: 4.3.3(3)(c) | M82: 4.3.5(3)(c)(i)
A83: Depreciation temporary differences
A84: BBAR year ending in calendar year: | C84: =C$4 -> 2020 | D84: =D$4 -> 2021 | E84: =E$4 -> 2022 | F84: 2023 | G84: 2024 | H84: =H$4 -> 2025 | I84: 2026 | J84: 2027
A85: Total adjusted depreciation of assets | C85: =IF(EarlyBaseYear,C68+C73,"~") -> ~ | D85: =D68+D73 -> 11347 | E85: 11788.90023 | F85: 18727.59398 | G85: 18958.86965 | H85: 19170.45492 | I85: 19409.3989 | J85: 19687.49825
A86: Tax depreciation | C86: =C80 -> ~ | D86: 18496 | E86: 18193.72913 | F86: 17095.87952 | G86: 16030.37189 | H86: 15010.26671 | I86: 14168.45703 | J86: 13518.43676 | K86: simple ref
A87: Depreciation temporary differences, deferred tax approach | C87: =IF(EarlyBaseYear,C85-C86,"~") -> ~ | D87: =D85-D86 -> -7149 | E87: -6404.8289 | F87: 1631.714457 | G87: 2928.49776 | H87: =H85-H86 -> 4160.188211 | I87: 5240.941873 | J87: 6169.061493 | L87: n/a | M87: 4.3.5(1)
A88: Deductions for regulatory tax purposes
A89: Amortisation of initial differences in asset values | C89: =IF(EarlyBaseYear,B8,"~") -> ~ | D89: =$B$8 -> 2452.34375 | E89: 2452.34375 | F89: 2452.34375 | G89: 2452.34375 | H89: =$B$8 -> 2452.34375 | I89: 2452.34375 | J89: 2452.34375 | K89: simple ref | L89: n/a
A90: Notional deductible interest | F90: =(F20*$D$16*$D$15+F19)/(1+$D$15)^0.5 -> 7646.325037 | G90: 7573.649239 | H90: 7454.543282 | I90: 7312.621323 | J90: 7177.197605 | L90: 4.3.4(1) | M90: 4.3.3(2)
A91: Amortisation of revaluations | F91: =F18-F85 -> 4175.722156 | G91: 4800.764468 | H91: 5375.757273 | I91: 5893.701265 | J91: 6429.209641 | L91: n/a | M91: 4.3.3(5)
A92: Regulatory tax adjustments | F92: =F89+F91-F90 -> -1018.259131 | G92: -320.5410206 | H92: =H89+H91-H90 -> 373.5577404 | I92: 1033.423692 | J92: 1704.355786 | L92: n/a | M92: 4.3.3(1)
A93: Deferred tax asset value
A94: BBAR year ending in calendar year: | C94: =C$4 -> 2020 | D94: =D$4 -> 2021 | E94: =E$4 -> 2022 | F94: 2023 | G94: 2024 | H94: =H$4 -> 2025 | I94: 2026 | J94: 2027
A95: Opening deferred tax | C95: =IF(EarlyBaseYear,C14,"~") -> ~ | D95: =IF(EarlyBaseYear,C98,D14) -> -33959 | E95: =D98 -> -36647.37625 | F95: =E98 -> -39127.38459 | G95: -39357.16079 | H95: =G98 -> -39223.83767 | I95: -38745.64122 | J95: -37964.83375 | K95: simple ref | L95: n/a | M95: 4.3.4(1)(b)
A96: Depreciation temporary differences, deferred tax approach | C96: =C87 -> ~ | D96: -7149 | E96: -6404.8289 | F96: 1631.714457 | G96: 2928.49776 | H96: 4160.188211 | I96: 5240.941873 | J96: 6169.061493 | K96: simple ref
A97: Amortisation of initial differences in asset values | C97: =C89 -> ~ | D97: 2452.34375 | E97: 2452.34375 | F97: 2452.34375 | G97: 2452.34375 | H97: 2452.34375 | I97: 2452.34375 | J97: 2452.34375 | K97: simple ref
A98: Closing deferred tax | C98: =IF(EarlyBaseYear,C95+(C96-C97)*C5,"~") -> ~ | D98: =D95+(D96-D97)*D5 -> -36647.37625 | E98: =E95+(E96-E97)*E5 -> -39127.38459 | F98: -39357.16079 | G98: -39223.83767 | H98: -38745.64122 | I98: -37964.83375 | J98: -36924.15278 | L98: n/a | M98: 4.3.4(2)
A99: Outputs
A100: BBAR year ending in calendar year: | C100: =C$4 -> 2020 | D100: =D$4 -> 2021 | E100: =E$4 -> 2022 | F100: 2023 | G100: 2024 | H100: =H$4 -> 2025 | I100: 2026 | J100: 2027
A101: Opening deferred tax | E101: =E95 -> -36647.37625 | F101: =F95 -> -39127.38459 | G101: -39357.16079 | H101: =H95 -> -39223.83767 | I101: -38745.64122 | J101: -37964.83375 | K101: simple ref
A102: Closing deferred tax | F102: =F98 -> -39357.16079 | G102: -39223.83767 | H102: =H98 -> -38745.64122 | I102: -37964.83375 | J102: -36924.15278 | K102: simple ref
A103: Regulatory tax adjustments | F103: =F92 -> -1018.259131 | G103: -320.5410206 | H103: 373.5577404 | I103: 1033.423692 | J103: 1704.355786 | K103: simple ref
A104: Tax depreciation | F104: =F80 -> 17095.87952 | G104: 16030.37189 | H104: 15010.26671 | I104: 14168.45703 | J104: 13518.43676 | K104: simple ref
A105: Notional deductible interest | F105: =F90 -> 7646.325037 | G105: 7573.649239 | H105: =H90 -> 7454.543282 | I105: 7312.621323 | J105: 7177.197605 | K105: simple ref

Sheet BBAR
A1: Building blocks allowable revenue | B1: Values, not time series | C1: Early base year | D1: Std base year | E1: Gap year | F1: 1st BBAR year | G1: 2nd BBAR year | H1: 3rd BBAR year | I1: 4th BBAR year | J1: 5th BBAR year | L1: Spec ref | M1: IM ref
A2: Calculation of BBAR present value, opening investment value, and TCSD allowance.
A3: Inputs | J3: =GPB_name -> Vector
A4: Tax payable (payable) or deferred tax (deferred) | B4: ='GPB data'!B29 -> deferred
A5: Vanilla WACC (67th percentile) | B5: =WACC -> 0.0614
A6: Term credit spread differential allowance | C6: ='GPB data'!C41 -> ~ | D6: ='GPB data'!D41 -> 394.7103671 | L6: GPB data
A7: BBAR year ending in calendar year: | D7: ='GPB data'!D18 -> 2021 | E7: ='GPB data'!E18 -> 2022 | F7: ='GPB data'!F18 -> 2023 | G7: ='GPB data'!G18 -> 2024 | H7: ='GPB data'!H18 -> 2025 | I7: ='GPB data'!I18 -> 2026 | J7: ='GPB data'!J18 -> 2027 | L7: GPB data
A8: Corporate tax rate | F8: ='GPB data'!F23 -> 0.28 | G8: ='GPB data'!G23 -> 0.28 | H8: ='GPB data'!H23 -> 0.28 | I8: ='GPB data'!I23 -> 0.28 | J8: ='GPB data'!J23 -> 0.28 | L8: GPB data
A9: Other regulated income | F9: ='GPB data'!F96 -> -106.0844096 | G9: ='GPB data'!G96 -> -108.524351 | H9: ='GPB data'!H96 -> -110.694838 | I9: ='GPB data'!I96 -> -112.9087348 | J9: ='GPB data'!J96 -> -115.1669095 | L9: GPB data
A11: Value of commissioned assets | F11: ='GPB data'!F77 -> 6788.752246 | G11: ='GPB data'!G77 -> 6162.44264 | H11: ='GPB data'!H77 -> 6867.068833 | I11: ='GPB data'!I77 -> 7880.523059 | J11: ='GPB data'!J77 -> 8310.031422 | L11: GPB data
A12: Operating expenditure | F12: ='GPB data'!F55 -> 15402.43671 | G12: ='GPB data'!G55 -> 15938.21291 | H12: ='GPB data'!H55 -> 16028.18117 | I12: ='GPB data'!I55 -> 16465.67508 | J12: ='GPB data'!J55 -> 16951.96015 | L12: GPB data
A13: Day prior to start of the regulatory period | B13: ='GPB data'!B14 -> 2022-09-30 | L13: GPB data
A14: TFmid | F14: =Timing!F30 -> 1.022451267 | G14: =Timing!G30 -> 1.03024269 | H14: =Timing!H30 -> 1.030158596 | I14: =Timing!I30 -> 1.030158596 | J14: =Timing!J30 -> 1.00753809 | L14: TIMING
A15: TFtax | F15: =Timing!F31 -> 1.022451267 | G15: =Timing!G31 -> 1.03024269 | H15: =Timing!H31 -> 1.030158596 | I15: =Timing!I31 -> 1.030158596 | J15: =Timing!J31 -> 1.00753809 | L15: TIMING
A16: TFrev | F16: =Timing!F32 -> 1.016791631 | G16: =Timing!G32 -> 1.024555464 | H16: =Timing!H32 -> 1.024456298 | I16: =Timing!I32 -> 1.024456298 | J16: =Timing!J32 -> 1.001961004 | L16: TIMING
A17: Aggregate opening RAB value | C17: =RAB!C103 -> ~ | D17: =RAB!D103 -> 434256 | E17: =RAB!E103 -> 451131 | F17: =RAB!F103 -> 473412.5352 | G17: =RAB!G103 -> 469483.983 | H17: =RAB!H103 -> 462561.6384 | I17: =RAB!I103 -> 454010.148 | J17: =RAB!J103 -> 445542.2011 | L17: RAB
A18: Closing RAB, 4th BBAR year | B18: =RAB!B105 -> 436518.7732
A19: Total revaluation | F19: =RAB!F104 -> 12293.81132 | G19: =RAB!G104 -> 10785.12592 | H19: =RAB!H104 -> 9240.137539 | I19: =RAB!I104 -> 9069.364533 | J19: =RAB!J104 -> 8900.2775 | L19: RAB
A20: Total depreciation | F20: =RAB!F102 -> 22903.31614 | G20: =RAB!G102 -> 23759.63412 | H20: =RAB!H102 -> 24546.21219 | I20: =RAB!I102 -> 25303.10016 | J20: =RAB!J102 -> 26116.70789 | L20: RAB
A21: Opening deferred tax | E21: =Tax!E101 -> -36647.37625 | F21: =Tax!F101 -> -39127.38459 | G21: =Tax!G101 -> -39357.16079 | H21: =Tax!H101 -> -39223.83767 | I21: =Tax!I101 -> -38745.64122 | J21: =Tax!J101 -> -37964.83375 | L21: TAX
A22: Closing deferred tax | F22: =Tax!F102 -> -39357.16079 | G22: =Tax!G102 -> -39223.83767 | H22: =Tax!H102 -> -38745.64122 | I22: =Tax!I102 -> -37964.83375 | J22: =Tax!J102 -> -36924.15278 | L22: TAX
A23: Regulatory tax adjustments | F23: =Tax!F103 -> -1018.259131 | G23: =Tax!G103 -> -320.5410206 | H23: =Tax!H103 -> 373.5577404 | I23: =Tax!I103 -> 1033.423692 | J23: =Tax!J103 -> 1704.355786 | L23: TAX
A24: Tax depreciation | F24: =Tax!F104 -> 17095.87952 | G24: =Tax!G104 -> 16030.37189 | H24: =Tax!H104 -> 15010.26671 | I24: =Tax!I104 -> 14168.45703 | J24: =Tax!J104 -> 13518.43676 | L24: TAX
A25: Notional deductible interest | F25: =Tax!F105 -> 7646.325037 | G25: =Tax!G105 -> 7573.649239 | H25: =Tax!H105 -> 7454.543282 | I25: =Tax!I105 -> 7312.621323 | J25: =Tax!J105 -> 7177.197605 | L25: TAX
A26: Proportion of BBAR year in the regulatory period | F26: =Timing!F29 -> 0.7479452055 | G26: =Timing!G29 -> 1 | H26: =Timing!H29 -> 1 | I26: =Timing!I29 -> 1 | J26: =Timing!J29 -> 0.2520547945 | L26: =Notes!A6 -> 1
A27: Number of BBAR days in the BBAR period | F27: =Timing!F28 -> 273 | G27: =Timing!G28 -> 366 | H27: =Timing!H28 -> 365 | I27: =Timing!I28 -> 365 | J27: =Timing!J28 -> 92 | L27: TIMING
A28: Calculations
A29: BBAR year ending in calendar year: | D29: =D$7 -> 2021 | E29: =E$7 -> 2022 | F29: 2023 | G29: 2024 | H29: =H$7 -> 2025 | I29: 2026 | J29: 2027 | L29: simple ref
A30: Cumulative number of days from start of regulatory period to end of BBAR period | E30: 0 | F30: =E30+F27 -> 273 | G30: 639 | H30: 1004 | I30: 1369 | J30: 1461 | L30: =Notes!A7 -> 2
A31: PV factor from end of each BBAR period | F31: =(1+WACC)^(-1*F30/365) -> 0.9564094613 | G31: 0.9009358711 | H31: =(1+WACC)^(-1*H30/365) -> 0.8488184201 | I31: 0.7997158659 | J31: 0.7877941749 | L31: =Notes!A8 -> 3
A32: Term credit spread differential allowance
A34: Asset base scaling factor | D34: =IF(EarlyBaseYear,D17/$C$17,D17/$D$17) -> 1 | E34: 1.038859567 | F34: 1.090169244 | G34: 1.081122617 | H34: 1.065181917 | I34: 1.045489637 | J34: 1.025989741 | L34: =Notes!A9 -> 4
A35: Term credit spread differential allowance, full BBAR years | C35: =C6 -> ~ | D35: =IF(EarlyBaseYear,$C35*D34,D6) -> 394.7103671 | E35: =IF(EarlyBaseYear,$C35,$D35)*E34 -> 410.0486409 | F35: 430.3011025 | G35: 426.7303049 | H35: 420.4383454 | I35: 412.6655986 | J35: 404.9687875 | L35: =Notes!A10 -> 5
A36: Return on capital
A37: BBAR year ending in calendar year: | D37: =D$7 -> 2021 | E37: =E$7 -> 2022 | F37: 2023 | G37: 2024 | H37: =H$7 -> 2025 | I37: 2026 | J37: 2027 | L37: simple ref
A38: Opening investment value (full BBAR year values) | E38: =E17+IF($B$4="deferred",E21,0) -> 414483.6238 | F38: =F17+IF($B$4="deferred",F21,0) -> 434285.1506 | G38: 430126.8222 | H38: 423337.8007 | I38: 415264.5068 | J38: 407577.3674 | L38: =Notes!A11 -> 6
A39: Opening investment value, start of regulatory period | B39: =G38-F26*(G38-F38) -> 433237.024 | L39: =Notes!A12 -> 7
A40: Closing investment value, end of 5th BBAR year | B40: =B18+IF($B$4="deferred",J22,0) -> 399594.6204 | L40: =Notes!A13 -> 7
A41: Closing investment value, end of regulatory period | B41: =J38+J26*(B40-J38) -> 405565.2777 | L41: =Notes!A14 -> 8
A42: Opening investment value for each BBAR period | F42: =B39 -> 433237.024 | G42: =G38 -> 430126.8222 | H42: =H38 -> 423337.8007 | I42: =I38 -> 415264.5068 | J42: =J38 -> 407577.3674 | L42: =Notes!A15 -> 9
A43: Value of commissioned assets, after accounting for part year effects | F43: =F11*F26 -> 5077.614693 | G43: 6162.44264 | H43: 6867.068833 | I43: 7880.523059 | J43: 2094.583263 | L43: =Notes!A16 -> 10
A44: Term credit spread differential allowance, after accounting for part year effects | F44: =F35*F26 -> 321.8416465 | G44: 426.7303049 | H44: 420.4383454 | I44: 412.6655986 | J44: 102.0743245 | L44: =Notes!A16 -> 10
A45: Total revaluation, after accounting for part year effects | F45: =F19*F26 -> 9195.097231 | G45: 10785.12592 | H45: 9240.137539 | I45: 9069.364533 | J45: 2243.357617 | L45: =Notes!A16 -> 10
A46: WACC adjusted for full and part years | F46: =(1+WACC)^(F27/365)-1 -> 0.04557727675 | G46: 0.06157329509 | H46: 0.0614 | I46: 0.0614 | J46: 0.01513300222 | L46: =Notes!A$18 -> 12
A47: Return on capital, after accounting for part year effects | F47: =F42*F46+F43*(F$14-1)+F44-F45 -> 10986.50704 | G47: 16312.29897 | H47: =H42*H46+H43*(H$14-1)+H44-H45 -> 17380.34293 | I47: 17078.20729 | J47: 4042.375068 | L47: =Notes!A19 -> 13
A48: Operating expenditure
A49: BBAR year ending in calendar year: | F49: =F$7 -> 2023 | G49: 2024 | H49: =H$7 -> 2025 | I49: 2026 | J49: 2027 | L49: simple ref
A50: Operating expenditure, after accounting for part year effects | F50: =F12*F26 -> 11520.17869 | G50: 15938.21291 | H50: 16028.18117 | I50: 16465.67508 | J50: 4272.822831 | L50: =Notes!$A$16 -> 10
A51: Building block allowable revenue before tax, after accounting for part year effects, deferred tax approach | G51: The next 12 lines are greyed out when a supplier to which a deferred tax approach does not apply.
A52: BBAR year ending in calendar year: | F52: =F$7 -> 2023 | G52: 2024 | H52: =H$7 -> 2025 | I52: 2026 | J52: 2027 | L52: simple ref
A53: Increase in deferred tax asset, ΔDT | F53: =F22-F21 -> -229.776202 | G53: 133.3231227 | H53: 478.1964491 | I53: 780.8074744 | J53: 1040.680968 | L53: 11
A54: Increase in deferred tax asset, ΔDT, after accounting for part year effects | F54: =F53*F26 -> -171.8600086 | G54: 133.3231227 | H54: 478.1964491 | I54: 780.8074744 | J54: 262.3086275 | L54: 10
A55: Other regulated income, after accounting for part year effects | F55: =F9*F26 -> -79.34532554 | G55: -108.524351 | H55: -110.694838 | I55: -112.9087348 | J55: -29.02837171 | L55: =Notes!A$16 -> 10
A56: Depreciation, after accounting for part year effects | F56: =F20*F26 -> 17130.42549 | G56: 23759.63412 | H56: 24546.21219 | I56: 25303.10016 | J56: 6582.841441 | L56: =Notes!A$16 -> 10
A57: Regulatory tax adjustments, after accounting for part year effects | F57: =F23*F26 -> -761.6020348 | G57: -320.5410206 | H57: 373.5577404 | I57: 1033.423692 | J57: 429.5910474 | L57: =Notes!A$16 -> 10
A58: BBAR before tax in revenue date terms, calculation not referencing tax | F58: =(F47+F56*(1-F8*F15)+F50*(F14-F8*F15)-F55*(F14-F8*F15)+F54*(F15-1)+F57*F8*F15)/(F16-F8*F15) -> 43161.89672 | G58: =(G47+G56*(1-G8*G15)+G50*(G14-G8*G15)-G55*(G14-G8*G15)+G54*(G15-1)+G57*G8*G15)/(G16-G8*G15) -> 61178.41961 | H58: 63774.70772 | I58: 64810.05883 | J58: 16686.77008 | L58: =Notes!A$20 -> 14
A59: Regulatory tax allowance before considering possibility of tax losses | F59: =(F58+F55-F50-F56+F57)*F8 -> 3827.696651 | G59: 5894.422019 | H59: 6569.689634 | I59: 6709.303591 | J59: 1744.867175 | L59: =Notes!A21 -> 15
A60: Regulatory tax allowance | F60: =IF(AND(F59<0,$B$4="deferred"),#N/A,F59) -> 3827.696651 | G60: 5894.422019 | H60: =IF(AND(H59<0,$B$4="deferred"),#N/A,H59) -> 6569.689634 | I60: 6709.303591 | J60: 1744.867175 | L60: =Notes!A22 -> 16
A61: BBAR before tax in BBAR period-end terms, direct simple calculation | F61: =F47+F56+F50*F14+(F60+F54)*F$15-F55*F$14-F54 -> 43886.65537 | G61: =G47+G56+G50*G14+(G60+G54)*G$15-G55*G$14-G54 -> 62680.68409 | H61: 65334.40095 | I61: 66395.07291 | J61: 16719.4929 | L61: =Notes!A23 -> 17
A62: BBAR before tax in revenue date terms | F62: =F61/F$16 -> 43161.89672 | G62: 61178.41961 | H62: =H61/H$16 -> 63774.70772 | I62: 64810.05883 | J62: 16686.77008 | L62: =Notes!A24 -> 18
A63: Difference between the two BBAR calculations (should = 0) | F63: =F58-F62 -> 0 | G63: 0 | H63: =H58-H62 -> 0 | I63: 0 | J63: 0 | L63: =Notes!A25 -> 19
A64: Building block allowable revenue before tax, after accounting for part year effects, tax payable approach | G64: The next 12 lines are greyed out when a supplier to which a tax payable approach does not apply.
A65: BBAR year ending in calendar year: | F65: =F$7 -> 2023 | G65: 2024 | H65: =H$7 -> 2025 | I65: 2026 | J65: 2027 | L65: simple ref
A66: Other regulated income, after accounting for part year effects | F66: =F9*F26 -> -79.34532554 | G66: -108.524351 | H66: -110.694838 | I66: -112.9087348 | J66: -29.02837171 | L66: =Notes!$A$16 -> 10
A67: Depreciation, after accounting for part year effects | F67: =F20*F26 -> 17130.42549 | G67: 23759.63412 | H67: 24546.21219 | I67: 25303.10016 | J67: 6582.841441 | L67: =Notes!$A$16 -> 10
A68: Tax depreciation | F68: =F24*F26 -> 12786.78112 | G68: 16030.37189 | H68: 15010.26671 | I68: 14168.45703 | J68: 3407.386799 | L68: =Notes!$A$16 -> 10
A69: Notional deductible interest | F69: =F25*F26 -> 5719.032151 | G69: 7573.649239 | H69: 7454.543282 | I69: 7312.621323 | J69: 1809.047068 | L69: =Notes!$A$16 -> 10
A70: Depreciation temporary differences, tax payable approach | F70: =F67-F68 -> 4343.644371 | G70: 7729.262228 | H70: =H67-H68 -> 9535.945484 | I70: 11134.64314 | J70: 3175.454642 | L70: =Notes!A26 -> 20 | M70: 4.3.3(1)
A71: BBAR before tax in revenue date terms, calculation not referencing tax | F71: =(F47+F67*(1-F8*F15)+F50*(F14-F8*F15)-F66*(F14-F8*F15)+(F70-F69)*F8*F15)/(F16-F8*F15) -> 42926.63489 | G71: =(G47+G67*(1-G8*G15)+G50*(G14-G8*G15)-G66*(G14-G8*G15)+(G70-G69)*G8*G15)/(G16-G8*G15) -> 61359.54362 | H71: 64424.42066 | I71: 65870.92141 | J71: 17051.16336 | L71: =Notes!A28 -> 22
A72: Regulatory tax allowance before considering possibility of tax losses | F72: =(F71+F66-F50-F67+F70-F69)*F8 -> 3589.96333 | G72: 6078.459865 | H72: 7229.805706 | I72: 7787.152588 | J72: 2109.205922 | L72: =Notes!A29 -> 23 | M72: 4.3.1
A73: Regulatory tax allowance | F73: =IF(AND(F72<0,$B$4="payable"),#N/A,F72) -> 3589.96333 | G73: 6078.459865 | H73: 7229.805706 | I73: 7787.152588 | J73: 2109.205922 | L73: =Notes!A22 -> 16
A74: BBAR before tax in BBAR period-end terms, direct simple calculation | F74: =F47+F67+F50*F14+(F73)*F$15-F66*F$14 -> 43647.44311 | G74: =G47+G67+G50*G14+(G73)*G$15-G66*G$14 -> 62866.25569 | H74: 66000.00346 | I74: 67481.88027 | J74: 17084.60076 | L74: =Notes!A28 -> 22
A75: BBAR before tax in revenue date terms | F75: =F74/F$16 -> 42926.63489 | G75: 61359.54362 | H75: =H74/H$16 -> 64424.42066 | I75: 65870.92141 | J75: 17051.16336 | L75: =Notes!A24 -> 18
A76: Difference between the two BBAR calculations (should = 0) | F76: =F71-F75 -> 0 | G76: 0 | H76: =H71-H75 -> 0 | I76: 0 | J76: 0 | L76: =Notes!A25 -> 19
A77: Parameters dependent on whether a deferred tax or tax payable approach applied
A78: BBAR before tax in BBAR period-end terms | F78: =IF($B$4="deferred",F61,F74) -> 43886.65537 | G78: 62680.68409 | H78: =IF($B$4="deferred",H61,H74) -> 65334.40095 | I78: =IF($B$4="deferred",I61,I74) -> 66395.07291 | J78: 16719.4929 | L78: =Notes!A30 -> 24
A79: BBAR before tax in revenue date terms | F79: =IF($B$4="deferred",F58,F71) -> 43161.89672 | G79: 61178.41961 | H79: =IF($B$4="deferred",H58,H71) -> 63774.70772 | I79: 64810.05883 | J79: 16686.77008 | L79: =Notes!A$30 -> 24
A80: Tax allowance in period-end terms | F80: =IF($B$4="deferred",F60,F73)*F15 -> 3913.633289 | G80: 6072.685196 | H80: 6767.82225 | I80: 6911.646768 | J80: 1758.02014 | L80: =Notes!A$31 -> 25
A81: Tax payable | F81: =IF($B$4="deferred",F54+F60,F73) -> 3655.836642 | G81: 6027.745142 | H81: =IF($B$4="deferred",H54+H60,H73) -> 7047.886083 | I81: 7490.111065 | J81: 2007.175803 | L81: =Notes!A$32 -> 26
A82: Present value of the building block allowable revenue before tax
A83: BBAR year ending in calendar year: | B83: Value | F83: =F$7 -> 2023 | G83: 2024 | H83: =H$7 -> 2025 | I83: 2026 | J83: 2027 | L83: simple ref
A84: BBAR before tax in BBAR period-end terms | F84: =F78 -> 43886.65537 | G84: 62680.68409 | H84: 65334.40095 | I84: 66395.07291 | J84: 16719.4929 | L84: simple ref
A85: ="PV at " & TEXT(B13, "dd-mmm-yy") & " BBAR before tax for each BBAR period" -> PV at 30-Sep-22 BBAR before tax for each BBAR period | F85: =F84*F31 -> 41973.61242 | G85: =G84*G31 -> 56471.27672 | H85: 55457.04299 | I85: 53097.19323 | J85: =J84*J31 -> 13171.51911 | L85: =Notes!A33 -> 27
A86: ="PV at " & TEXT(B13, "dd-mmm-yy") & " of total BBAR before tax" -> PV at 30-Sep-22 of total BBAR before tax | B86: =SUM(F85:J85) -> 220170.6445 | L86: =Notes!A34 -> 28
A87: Outputs
A88: BBAR year ending in calendar year: | B88: Value | F88: =F$7 -> 2023 | G88: 2024 | H88: =H$7 -> 2025 | I88: 2026 | J88: 2027 | L88: simple ref
A89: Present value of BBAR as at the start of the regulatory period | B89: =B86 -> 220170.6445 | L89: simple ref
A90: Opening investment value at start of regulatory period | B90: =B39 -> 433237.024 | L90: simple ref
A91: Closing investment value at end of regulatory period | B91: =B41 -> 405565.2777 | L91: simple ref
A92: Term credit spread differential allowance, full BBAR years | F92: =F35 -> 430.3011025 | G92: 426.7303049 | H92: 420.4383454 | I92: 412.6655986 | J92: 404.9687875 | L92: simple ref
A93: BBAR before tax in revenue date terms | F93: =F79 -> 43161.89672 | G93: 61178.41961 | H93: 63774.70772 | I93: 64810.05883 | J93: 16686.77008 | L93: simple ref
A94: Opening investment value (full BBAR year values) | E94: =E38 -> 414483.6238 | F94: 434285.1506 | G94: 430126.8222 | H94: 423337.8007 | I94: 415264.5068 | J94: 407577.3674 | L94: simple ref
A95: Total capital charge

Sheet Rev
A1: Revenue growth index | D1: Values, not time series | F1: 1st revenue year | G1: 2nd revenue year | H1: 3rd revenue year | I1: 4th revenue year | L1: Spec ref
A2: Calculation of the normalised profile of the maximum allowable revenue before tax values.
A3: Inputs | I3: =GPB_name -> Vector
A4: Pricing year ending in calendar year: | E4: ='GPB data'!E18 -> 2022 | F4: ='GPB data'!F18 -> 2023 | G4: ='GPB data'!G18 -> 2024 | H4: ='GPB data'!H18 -> 2025 | I4: ='GPB data'!I18 -> 2026 | L4: GPB data
A5: Constant price revenue growth | G5: ='GPB data'!G66 -> 0.01032253435 | H5: ='GPB data'!H66 -> 0.01021189474 | I5: ='GPB data'!I66 -> 0.0101010024 | L5: GPB data
A6: Industry-wide X factor | D6: ='GPB data'!B11 -> 0 | L6: GPB data
A7: Alternative X factor | D7: ='GPB data'!B44 -> -0.03 | L7: GPB data
A9: Forecast changes in the CPI element of the price path, no lag | G9: ='GPB data'!G27 -> 0.04628530323 | H9: ='GPB data'!H27 -> 0.02474373522 | I9: ='GPB data'!I27 -> 0.02149215402
A10: Total revenue cap (TRC) or weighted average price cap (WAPC) | D10: ='GPB data'!B30 -> WAPC | L10: GPB data
A11: Calculations
A13: ="Index of price path with industry-wide X factor of "&TEXT(D6,"#0.0%") -> Index of price path with industry-wide X factor of 0.0%
A14: Pricing year ending in calendar year: | F14: =F$4 -> 2023 | G14: =G$4 -> 2024 | H14: =H$4 -> 2025 | I14: =I$4 -> 2026 | L14: simple ref
A15: X value applied, i.e. industry-wide X factor | D15: =D6 -> 0 | L15: simple ref
A16: Index of cumulative CPI minus X changes | F16: 1 | G16: =F16*(1+G$9)*(1-$D$15) -> 1.046285303 | H16: =G16*(1+H$9)*(1-$D$15) -> 1.07217431 | I16: 1.095217645 | L16: =Notes!A37 -> 100
A17: Index of constant price growth for weighted average price cap | F17: 1 | G17: =F17*(1+G$5) -> 1.010322534 | H17: =G17*(1+H$5) -> 1.020639842 | I17: =H17*(1+I$5) -> 1.030949327 | L17: =Notes!A38 -> 101
A18: Indexed maximum allowable revenue before tax | F18: 1 | G18: =IF($D$10="WAPC",G16*G17,IF($D$10="TRC_FQ",G16,#N/A)) -> 1.057085619 | H18: =IF($D$10="WAPC",H16*H17,IF($D$10="TRC_FQ",H16,#N/A)) -> 1.094303818 | I18: =IF($D$10="WAPC",I16*I17,IF($D$10="TRC_FQ",I16,#N/A)) -> 1.129113894 | L18: =Notes!A39 -> 102
A19: ="CPI minus X revenues with applicable X factor (" & IF(ISNUMBER(D7),"alternate X factor of " & TEXT(D7,"#0.0%"), "industry-wide X factor of " & TEXT(D6,"#0.0%"))&")" -> CPI minus X revenues with applicable X factor (alternate X factor of -3.0%)
A20: Pricing year ending in calendar year: | F20: =F$4 -> 2023 | G20: =G$4 -> 2024 | H20: =H$4 -> 2025 | I20: =I$4 -> 2026 | L20: simple ref
A21: X value applied, i.e. alternative X factor if applicable | D21: =IF(D7="blank",D6,D7) -> -0.03
A22: Index of cumulative CPI minus X changes | F22: 1 | G22: =F22*(1+G$9)*(1-$D$21) -> 1.077673862 | H22: =G22*(1+H$9)*(1-$D$21) -> 1.137469725 | I22: 1.196773892 | L22: =Notes!A37 -> 100
A23: Index of constant price growth for weighted average price cap | F23: 1 | G23: =F23*(1+G$5) -> 1.010322534 | H23: =G23*(1+H$5) -> 1.020639842 | I23: =H23*(1+I$5) -> 1.030949327 | L23: =Notes!A38 -> 101
A24: Indexed maximum allowable revenue before tax | F24: 1 | G24: =IF($D$10="WAPC",G22*G23,IF($D$10="TRC_FQ",G22,#N/A)) -> 1.088798188 | H24: =IF($D$10="WAPC",H22*H23,IF($D$10="TRC_FQ",H22,#N/A)) -> 1.16094692 | I24: =IF($D$10="WAPC",I22*I23,IF($D$10="TRC_FQ",I22,#N/A)) -> 1.233813239 | L24: =Notes!A39 -> 102
A25: Outputs
A26: Pricing year ending in calendar year: | F26: =F$4 -> 2023 | G26: =G$4 -> 2024 | H26: =H$4 -> 2025 | I26: =I$4 -> 2026 | L26: simple ref
A27: Indexed maximum allowable revenue before tax—industry wide X factor | F27: =F18 -> 1 | G27: =G18 -> 1.057085619 | H27: =H18 -> 1.094303818 | I27: =I18 -> 1.129113894 | L27: simple ref
A28: Indexed maximum allowable revenue before tax—applicable X factor | F28: =F24 -> 1 | G28: =G24 -> 1.088798188 | H28: =H24 -> 1.16094692 | I28: =I24 -> 1.233813239 | L28: simple ref

Sheet MAR
A1: Maximum allowable revenue | C1: Values, not time series | F1: 1st Revenue year | G1: 2nd Revenue year | H1: 3rd Revenue year | I1: 4th Revenue year | K1: Spec ref
A2: Calculation of starting prices.
A3: Inputs | I3: =GPB_name -> Vector | K3: Simple ref
A4: Pricing year ending in calendar year: | F4: ='GPB data'!F18 -> 2023 | G4: ='GPB data'!G18 -> 2024 | H4: ='GPB data'!H18 -> 2025 | I4: ='GPB data'!I18 -> 2026 | K4: GPB data
A5: Year in regulatory period | F5: 1 | G5: =F5+1 -> 2 | H5: =G5+1 -> 3 | I5: =H5+1 -> 4 | K5: GPB data
A6: Industry-wide X factor | C6: ='GPB data'!B11 -> 0 | K6: GPB data
A7: Alternative X factor | C7: ='GPB data'!B44 -> -0.03 | K7: GPB data
A8: Vanilla WACC (67th percentile) | C8: =WACC -> 0.0614 | K8: GPB data
A9: TFrev | C9: =Timing!C27 -> 1.024456298 | K9: TIMING
A10: Constant price revenue growth in year ending 2022 | C10: ='GPB data'!E66 -> 0.01402179604 | K10: GPB data
A11: Constant price revenue growth in year ending 2023 | C11: ='GPB data'!F66 -> 0.01548673721 | K11: GPB data
A12: PV at 30 Sep 2022 of BBAR before tax over the regulatory period | C12: =BBAR!B89 -> 220170.6445 | K12: BBAR
A13: Indexed maximum allowable revenue before tax—industry wide X factor | F13: =Rev!F27 -> 1 | G13: =Rev!G27 -> 1.057085619 | H13: =Rev!H27 -> 1.094303818 | I13: =Rev!I27 -> 1.129113894 | K13: REV
A14: Indexed maximum allowable revenue before tax—applicable X factor | F14: =Rev!F28 -> 1 | G14: =Rev!G28 -> 1.088798188 | H14: =Rev!H28 -> 1.16094692 | I14: =Rev!I28 -> 1.233813239 | K14: REV
A15: Total revenue cap (TRC) or weighted avg price cap (WAPC) | C15: ='GPB data'!B30 -> WAPC | K15: GPB data
A16: Calculations
A17: ="CPI minus X revenues with industry-wide X factor of "&TEXT(C6,"#0.0%") -> CPI minus X revenues with industry-wide X factor of 0.0%
A18: Pricing year ending in calendar year: | F18: =F$4 -> 2023 | G18: =G$4 -> 2024 | H18: =H$4 -> 2025 | I18: =I$4 -> 2026 | K18: simple ref
A19: PV at 30 Sep 2022 of BBAR before tax over the regulatory period | C19: =C12 -> 220170.6445 | K19: simple ref
A20: ="Target PV at " & TEXT(Inputs!B15, "dd mmm yyyy") & " of maximum allowable revenue before tax" -> Target PV at 30 Sep 2022 of maximum allowable revenue before tax | C20: =C19 -> 220170.6445 | K20: =Notes!A42 -> 110
A21: Indexed maximum allowable revenue before tax | F21: =F13 -> 1 | G21: =G13 -> 1.057085619 | H21: =H13 -> 1.094303818 | I21: =I13 -> 1.129113894 | K21: simple ref
A22: Present value of indexed maximum allowable revenue for each year | F22: =F21/(1+$C$8)^F$5 -> 0.9421518749 | G22: =G21/(1+$C$8)^G$5 -> 0.9383222141 | H22: =H21/(1+$C$8)^H$5 -> 0.9151676596 | I22: =I21/(1+$C$8)^I$5 -> 0.8896545793 | K22: =Notes!A43 -> 111
A23: Present value of indexed revenue | C23: =SUM(F22:I22) -> 3.685296328 | K23: =Notes!A44 -> 112
A24: Maximum allowable revenue before tax in first year of the regulatory period | C24: =C20/C23 -> 59742.99619 | K24: =Notes!A45 -> 113
A25: Maximum allowable revenue before tax in year-end terms | F25: =$C24*F21 -> 59742.99619 | G25: =$C24*G21 -> 63153.46212 | H25: =$C24*H21 -> 65376.98882 | I25: =$C24*I21 -> 67456.64709 | K25: =Notes!A46 -> 114
A26: Maximum allowable revenue before tax in revenue-date terms | F26: =F25/$C$9 -> 58316.78358 | G26: =G25/$C$9 -> 61645.83328 | H26: =H25/$C$9 -> 63816.27891 | I26: =I25/$C$9 -> 65846.29061 | K26: =Notes!A47 -> 115
A27: ="PV at " & TEXT(Inputs!B15, "dd mmm yyyy") & " of maximum allowable revenue before tax in year-end terms in each year" -> PV at 30 Sep 2022 of maximum allowable revenue before tax in year-end terms in each year | F27: =F25/(1+$C$8)^F5 -> 56286.97587 | G27: =G25/(1+$C$8)^G5 -> 56058.18046 | H27: =H25/(1+$C$8)^H5 -> 54674.858 | I27: =I25/(1+$C$8)^I5 -> 53150.63014 | K27: =Notes!A48 -> 116
A28: ="PV at " &TEXT(Inputs!B15, "dd mmm yyyy") & " of maximum allowable revenue before tax" -> PV at 30 Sep 2022 of maximum allowable revenue before tax | C28: =SUM(F27:I27) -> 220170.6445 | K28: =Notes!A49 -> 117
A29: Error check for PV equivalence (should = 0) | C29: =C20-C28 -> 0 | K29: =Notes!A50 -> 118
A30: ΔD | C30: =IF(C15="WAPC",(1+$C$10)*(1+$C$11),#N/A) -> 1.029725685 | K30: =Notes!A51 -> 119
A31: ANR (industry-wide X-factor) pricing year ending Sep 2023, GDBs only | C31: =F26/C30 -> 56633.31936 | K31: =Notes!A52 -> 120
A33: Real MAR increases
A35: Nominal MAR - SPA | E35: ='GPB data'!B45 -> 50702.2772 | F35: =F26 -> 58316.78358 | G35: =G26 -> 61645.83328 | H35: 63816.27891 | I35: 65846.29061
A36: Nominal MAR increases % | F36: =F35/E35-1 -> 0.1501807571 | G36: =G35/F35-1 -> 0.05708561921 | H36: =H35/G35-1 -> 0.03520831038 | I36: =I35/H35-1 -> 0.03181024872
A37: CPI | F37: ='GPB data'!F27 -> 0.05214947966 | G37: ='GPB data'!G27 -> 0.04628530323 | H37: ='GPB data'!H27 -> 0.02474373522 | I37: ='GPB data'!I27 -> 0.02149215402
A38: CPRG | F38: ='GPB data'!F66 -> 0.01548673721 | G38: ='GPB data'!G66 -> 0.01032253435 | H38: ='GPB data'!H66 -> 0.01021189474 | I38: ='GPB data'!I66 -> 0.0101010024
A39: Real MAR increases SPA | F39: =F35/E35/(1+F37)/(1+F38)-1 -> 0.07650089948 | G39: =G35/F35/(1+G37)/(1+G38)-1 -> 0 | H39: 0 | I39: 0
A40: ="CPI minus X revenues with applicable X factor (" & IF(ISNUMBER(C7),"alternate X factor of " & TEXT(C7,"#0.0%"), "industry-wide X factor of " & TEXT(C6,"#0.0%"))&")" -> CPI minus X revenues with applicable X factor (alternate X factor of -3.0%)
A41: Pricing year ending in calendar year: | F41: =F$4 -> 2023 | G41: =G$4 -> 2024 | H41: =H$4 -> 2025 | I41: =I$4 -> 2026 | K41: simple ref
A42: =BBAR!A89 -> Present value of BBAR as at the start of the regulatory period | C42: =C12 -> 220170.6445 | K42: simple ref
A43: ="Target PV at " & TEXT('GPB data'!B14, "dd-mmm-yy") & " of Maximum Allowable Revenue before tax" -> Target PV at 30-Sep-22 of Maximum Allowable Revenue before tax | C43: =C42 -> 220170.6445 | K43: =Notes!A42 -> 110
A44: Indexed maximum allowable revenue before tax | F44: =F14 -> 1 | G44: =G14 -> 1.088798188 | H44: =H14 -> 1.16094692 | I44: =I14 -> 1.233813239 | K44: simple ref
A45: Present value of indexed maximum allowable revenue for each year | F45: =F44/(1+$C$8)^F$5 -> 0.9421518749 | G45: =G44/(1+$C$8)^G$5 -> 0.9664718805 | H45: =H44/(1+$C$8)^H$5 -> 0.97090137 | I45: =I44/(1+$C$8)^I$5 -> 0.9721495794 | K45: =Notes!A43 -> 111
A46: Present value of indexed revenue | C46: =SUM(F45:I45) -> 3.851674705 | K46: =Notes!A44 -> 112
A47: Maximum allowable revenue before tax in first year of the regulatory period | C47: =C43/C46 -> 57162.31545 | K47: =Notes!A45 -> 113
A48: Maximum allowable revenue before tax in year-end terms | F48: =$C47*F44 -> 57162.31545 | G48: =$C47*G44 -> 62238.22547 | H48: =$C47*H44 -> 66362.41407 | I48: =$C47*I44 -> 70527.62154 | K48: =Notes!A46 -> 114
A49: Maximum allowable revenue before tax in revenue-date terms | F49: =F48/$C$9 -> 55797.71004 | G49: =G48/$C$9 -> 60752.44558 | H49: =H48/$C$9 -> 64778.17963 | I49: =I48/$C$9 -> 68843.95333 | K49: =Notes!A47 -> 115
A50: ="PV at " & TEXT('GPB data'!B14, "dd-mmm-yy") & " of maximum allowable revenue before tax in year-end terms in each year" -> PV at 30-Sep-22 of maximum allowable revenue before tax in year-end terms in each year | F50: =F48/(1+$C$8)^F$5 -> 53855.58267 | G50: =G48/(1+$C$8)^G$5 -> 55245.7705 | H50: =H48/(1+$C$8)^H$5 -> 55498.97038 | I50: =I48/(1+$C$8)^I$5 -> 55570.32092 | K50: =Notes!A48 -> 116
A51: ="PV at " & TEXT('GPB data'!B14, "dd-mmm-yy") & " of maximum allowable revenue before tax" -> PV at 30-Sep-22 of maximum allowable revenue before tax | C51: =SUM(F50:I50) -> 220170.6445 | K51: =Notes!A49 -> 117
A52: Error check for PV equivalence (should = 0) | C52: =C43-C51 -> 0 | K52: =Notes!A50 -> 118
A53: ΔD | C53: =IF(C15="WAPC",(1+$C$10)*(1+$C$11),#N/A) -> 1.029725685 | K53: =Notes!A51 -> 119
A54: ANR (industry-wide X-factor) pricing year ending Sep 2023, GDBs only | C54: =F49/C53 -> 54186.96537 | K54: =Notes!A52 -> 120
A55: This data block uses the applicable 2022/23 X factor to calculate the maximum allowable revenues for the regulatory period. These allowed
A56: revenues are PV-equivalent to the corresponding revenues calculated with the industry-wide X factor in the previous data block.
A58: Real MAR increases
A60: Nominal MAR - SPA | E60: ='GPB data'!B45 -> 50702.2772 | F60: =F49 -> 55797.71004 | G60: =G49 -> 60752.44558 | H60: 64778.17963 | I60: 68843.95333
A61: Nominal MAR increases % | F61: =F60/E60-1 -> 0.1004971202 | G61: =G60/F60-1 -> 0.08879818779 | H61: 0.0662645597 | I61: 0.06276455619
A62: CPI | F62: ='GPB data'!F27 -> 0.05214947966 | G62: ='GPB data'!G27 -> 0.04628530323 | H62: ='GPB data'!H27 -> 0.02474373522 | I62: ='GPB data'!I27 -> 0.02149215402
A63: CPRG | F63: ='GPB data'!F66 -> 0.01548673721 | G63: ='GPB data'!G66 -> 0.01032253435 | H63: ='GPB data'!H66 -> 0.01021189474 | I63: ='GPB data'!I66 -> 0.0101010024
A64: Real MAR increases SPA | F64: =(F60/E60)/(1+F62)/(1+F63)-1 -> 0.02999996514 | G64: =(G60/F60)/(1+G62)/(1+G63)-1 -> 0.03 | H64: 0.03 | I64: 0.03
A65: Goal-sought number to be equal to zero | F65: =Real_MAR-AVERAGE($G$64:$I$64) -> -3.486309278e-08
A67: Outputs
A68: Pricing year ending in calendar year:
A69: Maximum allowable revenue before tax in revenue-date terms for industry wide X factor | F69: =F$4 -> 2023 | G69: =G$4 -> 2024 | H69: =H$4 -> 2025 | I69: =I$4 -> 2026 | K69: simple ref
A70: Maximum allowable revenue before tax in revenue-date terms for applicable X factor | F70: =F26 -> 58316.78358 | G70: =G26 -> 61645.83328 | H70: =H26 -> 63816.27891 | I70: =I26 -> 65846.29061 | K70: simple ref
A71: Starting price for industry-wide X factor | F71: =F49 -> 55797.71004 | G71: =G49 -> 60752.44558 | H71: =H49 -> 64778.17963 | I71: =I49 -> 68843.95333 | K71: simple ref
A72: Starting price for applicable X factor | F72: =F26 -> 58316.78358 | K72: simple ref
A73: ="PV at " & TEXT('GPB data'!B14, "dd-mmm-yy") & " of MAR before tax over the regulatory period (applicable X )" -> PV at 30-Sep-22 of MAR before tax over the regulatory period (applicable X ) | F73: =F49 -> 55797.71004 | K73: simple ref
A74: ΔD | F74: =C43 -> 220170.6445 | K74: simple ref
A75: ANR (industry-wide X-factor) pricing year ending Sep 2023, GDBs only | F75: =IF(Outputs!B22>4,"",C53) -> 1.029725685 | K75: simple ref
F76: =IF(Outputs!B22>4,"",C54) -> 54186.96537 | K76: simple ref
A78: DPP3 Real MAR increases | F78: =F$4 -> 2023 | G78: =G$4 -> 2024 | H78: =H$4 -> 2025 | I78: =I$4 -> 2026
A79: Nominal MAR - SPA | E79: =IF($F$39<0.1,MAR!E35,MAR!E60) -> 50702.2772 | F79: =IF($F$39<0.1,MAR!F35,MAR!F60) -> 58316.78358 | G79: =IF($F$39<0.1,MAR!G35,MAR!G60) -> 61645.83328 | H79: =IF($F$39<0.1,MAR!H35,MAR!H60) -> 63816.27891 | I79: =IF($F$39<0.1,MAR!I35,MAR!I60) -> 65846.29061
A80: Nominal MAR increases % | F80: =IF($F$39<0.1,MAR!F36,MAR!F61) -> 0.1501807571 | G80: =IF($F$39<0.1,MAR!G36,MAR!G61) -> 0.05708561921 | H80: =IF($F$39<0.1,MAR!H36,MAR!H61) -> 0.03520831038 | I80: =IF($F$39<0.1,MAR!I36,MAR!I61) -> 0.03181024872
A81: CPI | F81: =IF($F$39<0.1,MAR!F37,MAR!F62) -> 0.05214947966 | G81: =IF($F$39<0.1,MAR!G37,MAR!G62) -> 0.04628530323 | H81: =IF($F$39<0.1,MAR!H37,MAR!H62) -> 0.02474373522 | I81: =IF($F$39<0.1,MAR!I37,MAR!I62) -> 0.02149215402
A82: CPRG | F82: =IF($F$39<0.1,MAR!F38,MAR!F63) -> 0.01548673721 | G82: =IF($F$39<0.1,MAR!G38,MAR!G63) -> 0.01032253435 | H82: =IF($F$39<0.1,MAR!H38,MAR!H63) -> 0.01021189474 | I82: =IF($F$39<0.1,MAR!I38,MAR!I63) -> 0.0101010024
A83: Real MAR increases SPA | F83: =IF($F$39<0.1,MAR!F39,MAR!F64) -> 0.07650089948 | G83: =IF($F$39<0.1,MAR!G39,MAR!G64) -> 0 | H83: =IF($F$39<0.1,MAR!H39,MAR!H64) -> 0 | I83: =IF($F$39<0.1,MAR!I39,MAR!I64) -> 0
A84: Rate of Change | F84: =IF($F$39<0.1,MAR!G83,MAR!G83)*-1 -> 0
A85: ΔD | F85: =IFERROR(IF($F$39<0.1,C30,C53),"") -> 1.029725685
A86: ANR pricing year ending Sep 2021, GDB only | F86: =IFERROR(IF($F$39<0.1,C31,C54),"") -> 56633.31936

Sheet Outputs
A1: DPP reset output table
A2: This worksheet uses Excel's data table facility to display the calculated results for all suppliers.
A4: GAS DPP3 Final Decision
A5: 1, Copy values of blended ADF below from Asset Stranding model, tab "AS Decision DPP3" into cells B7:B11 below
B6: ADF from AS workbook
A7: Final X factor and ADF for GasNet | B7: 0.8148885984
A8: Final X factor and ADF for PowerCo | B8: 0.8389614383
A9: Final X factor and ADF for Vector | B9: 0.6593505936
A10: Final X factor and ADF for FirstGas Distribution | B10: 0.6934935207
A11: Final X factor and ADF for First Gas Transmission | B11: 0.7507305755
A13: 2, Using button, run macro to derive Final X factor and Adjustment Factor -> | C13: Blended ADF | D13: X factor for Blended ADF | E13: Calculation field | F13: X factor 10% cap, 0.5% rounding | G13: Final Adjustment Factor
A14: Final X factor and ADF for GasNet | C14: 0.817578133 | D14: -0.0546114441 | E14: =X_factor_GasNet -> -0.055 | F14: =IF(E14>0,MROUND(IF(ABS(E14)>0.1,0.1,ABS(E14)),0.005),MROUND(IF(ABS(E14)>0.1,-0.1,(E14)),-0.005)) -> -0.055 | G14: =ADF_GasNet -> 0.8148885984
A15: Final X factor and ADF for PowerCo | C15: 0.8285849575 | D15: -0.05218858037 | E15: =X_factor_PowerCo -> -0.05 | F15: =IF(E15>0,MROUND(IF(ABS(E15)>0.1,0.1,ABS(E15)),0.005),MROUND(IF(ABS(E15)>0.1,-0.1,(E15)),-0.005)) -> -0.05 | G15: =ADF_PowerCo -> 0.8389614383
A16: Final X factor and ADF for Vector | C16: 0.6639841997 | D16: -0.02876763248 | E16: =X_factor_Vector -> -0.03 | F16: -0.03 | G16: =ADF_Vector -> 0.6593505936
A17: Final X factor and ADF for FirstGas Distribution | C17: 0.6783399439 | D17: -0.1037683393 | E17: =X_factor_FGD -> -0.1 | F17: -0.1 | G17: =ADF_FGD -> 0.6934935207
A18: Final X factor and ADF for First Gas Transmission | C18: 0.7450856152 | D18: -0.0865633082 | E18: =X_factor_FGT -> -0.085 | F18: -0.085 | G18: =ADF_FGT -> 0.7507305755
A20: Outputs
A21: Chosen supplier | B21: =GPB_name -> Vector
A22: Supplier number | B22: =Inputs!C4 -> 3
A23: tax timing | B23: tax date mid-period
B24: Active GDB outputs | C24: =Inputs!B22 -> GasNet | D24: =Inputs!C22 -> Powerco | E24: =Inputs!D22 -> Vector | F24: =Inputs!E22 -> First Gas distribution | G24: =Inputs!F22 -> First Gas transmission
A25: Supplier number | B25: =B22 -> 3 | C25: =Inputs!B23 -> 1 | D25: =Inputs!C23 -> 2 | E25: =Inputs!D23 -> 3 | F25: =Inputs!E23 -> 4 | G25: =Inputs!F23 -> 5
C26: 0 | D26: 0 | E26: 0 | F26: 0 | G26: 0
A27: PV of BBAR at 30 September 2022 | B27: =BBAR!B89 -> 220170.6445 | C27: 19450.45348 | D27: 235151.9976 | E27: 220170.6445 | F27: 123060.1339 | G27: 607398.9883
A28: Starting price for industry-wide X factor | B28: =MAR!F72 -> 58316.78358 | C28: 5255.492557 | D28: 62036.03292 | E28: 58316.78358 | F28: 33030.05988 | G28: 166426.9881
A29: Starting price for applicable X factor | B29: =MAR!F73 -> 55797.71004 | C29: 4852.040352 | D29: 57632.91109 | E29: 55797.71004 | F29: 28565.85208 | G29: 147227.2812
A30: PV at 30 September 2022 of MAR (applicable X) | B30: =MAR!F74 -> 220170.6445 | C30: 19450.45348 | D30: 235151.9976 | E30: 220170.6445 | F30: 123060.1339 | G30: 607398.9883
A31: MAR (industry-wide X factor), pricing period ending 2023 | B31: =MAR!F70 -> 58316.78358 | C31: 5255.492557 | D31: 62036.03292 | E31: 58316.78358 | F31: 33030.05988 | G31: 166426.9881
A32: MAR (industry-wide X factor), pricing period ending 2024 | B32: =MAR!G70 -> 61645.83328 | C32: 5481.113482 | D32: 65782.00513 | E32: 61645.83328 | F32: 34603.22511 | G32: 170295.5066
A33: MAR (industry-wide X factor), pricing period ending 2025 | B33: =MAR!H70 -> 63816.27891 | C33: 5597.279636 | D33: 68268.21664 | E33: 63816.27891 | F33: 35499.26125 | G33: 173743.6485
A34: MAR (industry-wide X factor), pricing period ending 2026 | B34: =MAR!I70 -> 65846.29061 | C34: 5696.405548 | D34: 70573.88425 | E34: 65846.29061 | F34: 36297.23279 | G34: 177218.5215
A35: DPP3 MAR pricing period ending 2023 | B35: =MAR!F79 -> 58316.78358 | C35: 4852.040352 | D35: 57632.91109 | E35: 58316.78358 | F35: 28565.85208 | G35: 147227.2812
A36: DPP3 MAR pricing period ending 2024 | B36: =MAR!G79 -> 61645.83328 | C36: 5338.659619 | D36: 64168.65632 | E36: 61645.83328 | F36: 32919.0342 | G36: 163454.7199
A37: DPP3 MAR pricing period ending 2025 | B37: =MAR!H79 -> 63816.27891 | C37: 5751.655985 | D37: 69923.58638 | E37: 63816.27891 | F37: 37148.60481 | G37: 180939.3194
A38: DPP3 MAR pricing period ending 2026 | B38: =MAR!I79 -> 65846.29061 | C38: 6175.459221 | D38: 75899.41998 | E38: 65846.29061 | F38: 41782.01631 | G38: 200245.5448
A39: BBAR before tax, for the BBAR period ending 2023 | B39: =BBAR!F93 -> 43161.89672 | C39: 3798.341759 | D39: 61700.57114 | E39: 43161.89672 | F39: 31531.5621 | G39: 160646.8098
A40: BBAR before tax, for the BBAR period ending 2024 | B40: =BBAR!G93 -> 61178.41961 | C40: 5367.046337 | D40: 65588.34848 | E40: 61178.41961 | F40: 34136.09949 | G40: 170006.5532
A41: BBAR before tax, for the BBAR period ending 2025 | B41: =BBAR!H93 -> 63774.70772 | C41: 5629.703577 | D41: 68715.24327 | E41: 63774.70772 | F41: 36278.19765 | G41: 176687.994
A42: BBAR before tax, for the BBAR period ending 2026 | B42: =BBAR!I93 -> 64810.05883 | C42: 5773.181319 | D42: 70747.0693 | E42: 64810.05883 | F42: 37803.548 | G42: 181403.4735
A43: ΔD | B43: =MAR!F85 -> 1.029725685 | C43: 0.9960710203 | D43: 1.02808399 | E43: 1.029725685 | F43: 1.027441951
A44: ANR 2023 (applicable X-factor) | B44: =MAR!F86 -> 56633.31936 | C44: 4871.179116 | D44: 56058.56299 | E44: 56633.31936 | F44: 27802.88664
A45: MAR 2022 Forecast Nominal $ | B45: =MAR!E60 -> 50702.2772 | C45: 4383.998268 | D45: 51435.56862 | E45: 50702.2772 | F45: 24646.15131 | G45: 131623.3864
A46: Real MAR % | B46: =MAR!F83 -> 0.07650089948 | C46: 0.05499479886 | D46: 0.0500000422 | E46: 0.07650089948 | F46: 0.1000000006 | G46: 0.08500002872
A47: Adjustment Factor | B47: =RAB!B12 -> 0.6593505936 | C47: 0.8148885984 | D47: 0.8389614383 | E47: 0.6593505936 | F47: 0.6934935207 | G47: 0.7507305755
A48: Rate of Change | B48: =MAR!F84 -> 0 | C48: -0.055 | D48: -0.05 | E48: 0 | F48: -0.1 | G48: -0.085
A49: Real price increase with one-off SPA | B49: =MAR!F39 -> 0.07650089948 | C49: 0.1427187145 | D49: 0.1302194518 | E49: 0.07650089948 | F49: 0.271905553 | G49: 0.2264933871
A50: Implied Rate of change for (applicable X factor) | B50: =Real_MAR*-1 -> -0.02999996514 | C50: -0.05499479886 | D50: -0.0500000422 | E50: -0.02999996514 | F50: -0.1000000006 | G50: -0.08500002872
A51: Remaining Asset Life for Existing Assets in 2021 unadjusted | B51: =RAB!D5/RAB!D6 -> 34.23651845 | C51: 27.02921348 | D51: 23.53778275 | E51: 34.23651845 | F51: 27.80191964 | G51: 24.79594925
A52: Remaining Asset Life for Existing Assets in 2023 unadjusted | B52: =(RAB!D5/RAB!D6)-2 -> 32.23651845 | C52: 25.02921348 | D52: 21.53778275 | E52: 32.23651845 | F52: 25.80191964 | G52: 22.79594925
A53: Remaining Asset Life for Existing Assets in 2023 adjusted / Transitional Adjusted Asset Life | B53: =RAB!B107 -> 20.57386876 | C53: 20.02579789 | D53: 17.74729207 | E53: 20.57386876 | F53: 17.28045114 | G53: 16.61507725
A54: Total depreciation over four disclosure years, starting in 2022/2023 | B54: =RAB!B106 -> 94016.8762 | C54: 5298.076577 | D54: 95262.00229 | E54: 94016.8762 | F54: 44218.01463 | G54: 219849.0516

Sheet Outputs to Chartbook
A1: Outputs to chartbook
A4: Reasons Paper Charts
A5: Chapter 4 tables
B6: Table 4.2 MAR in each year of the regulatory period ($m, nominal)
B7: Year | C7: 2021/2022 forecast MAR | D7: 2022/2023 | E7: 2023/2024 | F7: 2024/2025 | G7: 2025/2026
B8: GasNet - Draft | C8: =(Outputs!C45)/1000 -> 4.383998268 | D8: ='[5]Outputs to Chartbook'!D8 -> 4.838789014 | E8: ='[5]Outputs to Chartbook'!E8 -> 5.284127747 | F8: ='[5]Outputs to Chartbook'!F8 -> 5.681029058 | G8: ='[5]Outputs to Chartbook'!G8 -> 6.093140702
B9: GasNet - Final | C9: =(C8) -> 4.383998268 | D9: =(Outputs!$C$35)/1000 -> 4.852040352 | E9: =(Outputs!$C$36)/1000 -> 5.338659619 | F9: =(Outputs!$C$37)/1000 -> 5.751655985 | G9: =(Outputs!$C$38)/1000 -> 6.175459221
B10: Powerco - Draft | C10: =(Outputs!D45)/1000 -> 51.43556862 | D10: ='[5]Outputs to Chartbook'!D9 -> 58.87507467 | E10: ='[5]Outputs to Chartbook'!E9 -> 66.64773149 | F10: ='[5]Outputs to Chartbook'!F9 -> 74.24516702 | G10: ='[5]Outputs to Chartbook'!G9 -> 82.47469009
B11: Powerco - Final | C11: =(C10) -> 51.43556862 | D11: =(Outputs!$D$35)/1000 -> 57.63291109 | E11: =(Outputs!$D$36)/1000 -> 64.16865632 | F11: =(Outputs!$D$37)/1000 -> 69.92358638 | G11: =(Outputs!$D$38)/1000 -> 75.89941998
B12: Vector - Draft | C12: =(Outputs!E45)/1000 -> 50.7022772 | D12: ='[5]Outputs to Chartbook'!D10 -> 56.85601745 | E12: ='[5]Outputs to Chartbook'!E10 -> 62.77143975 | F12: ='[5]Outputs to Chartbook'!F10 -> 68.23069846 | G12: ='[5]Outputs to Chartbook'!G10 -> 73.98915549
B13: Vector - Final | C13: =(C12) -> 50.7022772 | D13: =(Outputs!$E$35)/1000 -> 58.31678358 | E13: =(Outputs!$E$36)/1000 -> 61.64583328 | F13: =(Outputs!$E$37)/1000 -> 63.81627891 | G13: =(Outputs!$E$38)/1000 -> 65.84629061
B14: First Gas distribution - Draft | C14: =(Outputs!F45)/1000 -> 24.64615131 | D14: ='[5]Outputs to Chartbook'!D11 -> 28.24996793 | E14: ='[5]Outputs to Chartbook'!E11 -> 32.03611807 | F14: ='[5]Outputs to Chartbook'!F11 -> 35.7650554 | G14: ='[5]Outputs to Chartbook'!G11 -> 39.83053218
B15: First Gas distribution - Final | C15: =(C14) -> 24.64615131 | D15: =(Outputs!$F$35)/1000 -> 28.56585208 | E15: =(Outputs!$F$36)/1000 -> 32.9190342 | F15: =(Outputs!$F$37)/1000 -> 37.14860481 | G15: =(Outputs!$F$38)/1000 -> 41.78201631
B16: First Gas transmission - Draft | C16: =(Outputs!G45)/1000 -> 131.6233864 | D16: ='[5]Outputs to Chartbook'!D12 -> 148.7618512 | E16: ='[5]Outputs to Chartbook'!E12 -> 167.0331267 | F16: ='[5]Outputs to Chartbook'!F12 -> 187.4111682 | G16: ='[5]Outputs to Chartbook'!G12 -> 210.2753307
B17: First Gas transmission - Final | C17: =(C16) -> 131.6233864 | D17: =(Outputs!$G$35)/1000 -> 147.2272812 | E17: =(Outputs!$G$36)/1000 -> 163.4547199 | F17: =(Outputs!$G$37)/1000 -> 180.9393194 | G17: =(Outputs!$G$38)/1000 -> 200.2455448
B19: Table 4.3 Starting prices (excluding pass-through and recoverable costs) and rate of change
B20: Supplier | C20: Starting prices($m) | D20: Real price increase from 2022 | E20: Rate of change
B21: GasNet - Draft | C21: ='[5]Outputs to Chartbook'!C16 -> 4.838789014 | D21: =E21 -> -0.05114540505 | E21: ='[5]Outputs to Chartbook'!E16 -> -0.05114540505
B22: GasNet - Final | C22: =(Outputs!$C$35)/1000 -> 4.852040352 | D22: =E22 -> -0.055 | E22: =Outputs!C48 -> -0.055
B23: Powerco - Draft | C23: ='[5]Outputs to Chartbook'!C17 -> 58.87507467 | D23: -0.07485632177 | E23: ='[5]Outputs to Chartbook'!E17 -> -0.07485632177
B24: Powerco - Final | C24: =(Outputs!$D$35)/1000 -> 57.63291109 | D24: -0.05 | E24: =Outputs!D48 -> -0.05
B25: Vector - Draft | C25: ='[5]Outputs to Chartbook'!C18 -> 56.85601745 | D25: -0.0522027492 | E25: ='[5]Outputs to Chartbook'!E18 -> -0.0522027492
B26: Vector - Final | C26: =(Outputs!$E$35)/1000 -> 58.31678358 | D26: =Outputs!E46*-1 -> -0.07650089948 | E26: =Outputs!E48 -> 0
B27: First Gas distribution - Draft | C27: ='[5]Outputs to Chartbook'!C19 -> 28.24996793 | D27: -0.1 | E27: ='[5]Outputs to Chartbook'!E19 -> -0.1
B28: First Gas distribution - Final | C28: =(Outputs!$F$35)/1000 -> 28.56585208 | D28: -0.1 | E28: =Outputs!F48 -> -0.1
B29: First Gas transmission - Draft | C29: ='[5]Outputs to Chartbook'!C20 -> 148.7618512 | D29: -0.1 | E29: ='[5]Outputs to Chartbook'!E20 -> -0.1
B30: First Gas transmission - Final | C30: =(Outputs!$G$35)/1000 -> 147.2272812 | D30: -0.085 | E30: =Outputs!G48 -> -0.085
B32: Table 4.4 Adjustment Factors to be applied to asset lives for DPP3
B33: Supplier | C33: Adjustment Factor
B34: GasNet | C34: =TRANSPOSE(Outputs!$C$47:$G$47) -> 0.8148885984
B35: Powerco | C35: 0.8389614383
B36: Vector | C36: 0.6593505936
B37: First Gas distribution | C37: 0.6934935207
B38: First Gas transmission | C38: 0.7507305755
B40: Table 4.5 Implied real price increases due to one-off starting price adjustment
B41: Supplier | C41: Implied starting price($m) | D41: Implied real price increase for year 1 of DPP3
B42: GasNet | C42: =(Outputs!$C$31)/1000 -> 5.255492557 | D42: =TRANSPOSE(Outputs!$C$49:$G$49) -> 0.1427187145
B43: Powerco | C43: =(Outputs!$D$31)/1000 -> 62.03603292 | D43: 0.1302194518
B44: Vector | C44: =(Outputs!$E$31)/1000 -> 58.31678358 | D44: 0.07650089948
B45: First Gas distribution | C45: =(Outputs!$F$31)/1000 -> 33.03005988 | D45: 0.271905553
B46: First Gas transmission | C46: =(Outputs!$G$31)/1000 -> 166.4269881 | D46: 0.2264933871
B48: Table 4.6 Alternative rate of change for each GPB
B49: Supplier | C49: Rate of change (X-factor) as set out in our draft decision | D49: Proposed rate of change (X-factor)
B50: GasNet | C50: ='[5]Outputs to Chartbook'!C40 -> -0.05114540505 | D50: =TRANSPOSE(Outputs!$C$48:$G$48) -> -0.055
B51: Powerco | C51: ='[5]Outputs to Chartbook'!C41 -> -0.07485632177 | D51: -0.05
B52: Vector | C52: ='[5]Outputs to Chartbook'!C42 -> -0.0522027492 | D52: 0
B53: First Gas distribution | C53: ='[5]Outputs to Chartbook'!C43 -> -0.1 | D53: -0.1
B54: First Gas transmission | C54: ='[5]Outputs to Chartbook'!C44 -> -0.1 | D54: -0.085
B56: Table X1 Starting proces and rates of change
B57: Gas pipeline Business | C57: Starting prices (Maximum allowable revenue in 2022/23 ($m)) | D57: Rate of change (Relative to CPI)
B58: GasNet | C58: =Outputs!C35/1000 -> 4.852040352 | D58: =(Outputs!C48)/-1 -> 0.055
B59: Powerco | C59: =Outputs!D35/1000 -> 57.63291109 | D59: =(Outputs!D48)/-1 -> 0.05
B60: Vector | C60: =Outputs!E35/1000 -> 58.31678358 | D60: =(Outputs!E48)/-1 -> 0
B61: First Gas distribution | C61: =Outputs!F35/1000 -> 28.56585208 | D61: =(Outputs!F48)/-1 -> 0.1
B62: First Gas transmission | C62: =Outputs!G35/1000 -> 147.2272812 | D62: =(Outputs!G48)/-1 -> 0.085
C63: =SUM(C58:C62) -> 296.5948683
A65: Transmission Determination Tables & Values
B67: Schedule 1: Starting prices
C68: Actual net allowable revenue $m | D68: Decimal places
B69: Starting price | C69: =Outputs!G35/1000 -> 147.2272812 | D69: 3
B71: Schedule 2: Rate of change
C72: Rate of change / Alternative X factor
B73: Rate of change | C73: =Outputs!G48 -> -0.085
B76: Schedule 4: Forecast Net Allowable Revenue
C77: Forecast net allowable revenue $k | D77: Decimal places
B78: 2023-09-30 | C78: =Outputs!G35 -> 147227.2812 | D78: 3
B79: 2024-09-30 | C79: =Outputs!G36 -> 163454.7199 | D79: 3
B80: 2025-09-30 | C80: =Outputs!G37 -> 180939.3194 | D80: 3
B81: 2026-09-30 | C81: =Outputs!G38 -> 200245.5448 | D81: 3
B87: Schedule 8: Calculation of Opening Wash-up Account Balance
C88: Value | D88: Decimal places | H88: This is the 67th percentile estimate of post tax WACC, as
B89: Discount rate % | C89: 0.0567 | D89: 2 | H89: required by GTB determination Schedule 9.
A91: Distribution Determination Tables & Values
B93: Schedule 1: Starting prices
B94: GDB | C94: Maximum allowable revenue $m | D94: Decimal places
B95: GasNet Limited | C95: =D9 -> 4.852040352 | D95: 3
B96: Powerco Limited | C96: =D11 -> 57.63291109 | D96: 3
B97: Vector Limited | C97: =D13 -> 58.31678358 | D97: 3
B98: First Gas Limited | C98: =D15 -> 28.56585208 | D98: 3
B100: Schedule 2: rate of change
C101: Rate of change / Alternative X factor
B102: GasNet Limited | C102: =Outputs!C48 -> -0.055
B103: Powerco Limited | C103: =Outputs!D48 -> -0.05
B104: Vector Limited | C104: =Outputs!E48 -> 0
B105: First Gas Distribution Ltd | C105: =Outputs!F48 -> -0.1
B108: Schedule 3: Allowable notional revenue for the First Assessment Period
B109: GDB | C109: ΔD | D109: Decimal places
B110: GasNet Limited | C110: =TRANSPOSE(Outputs!C43:F43) -> 0.9960710203 | D110: 4
B111: Powerco Limited | C111: 1.02808399 | D111: 4
B112: Vector Limited | C112: 1.029725685 | D112: 4
B113: First Gas Limited | C113: 1.027441951 | D113: 4
B115: Schedule 5: Calculation of Wash-up Amount for the first Assessment Period
C116: Value | D116: Decimal places
B117: Discount rate % | C117: =Inputs!B17 -> 0.0404 | D117: 2 | H117: Cost of debt
A119: Reasons Paper Charts
A120: Chapter 4 tables (continued)
B122: Table 4.X Unadjusted remaining lives in first year of DPP3, DY2020 versus DY2021 (Existing Assets)
B123: Gas Pipeline Business | C123: DY20 data | D123: DY21 data
B124: GasNet | C124: 26.41226994 | D124: =TRANSPOSE(Outputs!$C$52:$G$52) -> 25.02921348
B125: Powerco | C125: 17.42178136 | D125: 21.53778275
B126: Vector | C126: 31.87358787 | D126: 32.23651845
B127: First Gas distribution | C127: 21.8262838 | D127: 25.80191964
B128: First Gas transmission | C128: 20.88791974 | D128: 22.79594925
B130: Table 4.X Adjusted remaining asset lives in first year of DPP3, DY2020 versus DY2021 (Existing Assets)
B131: Gas Pipeline Business | C131: DY20 data | D131: DY21 data
B132: GasNet | C132: 15.76416635 | D132: =TRANSPOSE(Outputs!C53:G53) -> 20.02579789
B133: Powerco | C133: 14.79222532 | D133: 17.74729207
B134: Vector | C134: 17.92248132 | D134: 20.57386876
B135: First Gas distribution | C135: 18.01684797 | D135: 17.28045114
B136: First Gas transmission | C136: 14.92810418 | D136: 16.61507725
B138: Table 4.X Adjustment factor for shortening asset lives
B140: Gas Pipeline Business | C140: Adjustment Factor Draft | D140: Adjustment Factor Final
B141: GasNet | C141: 0.6379706969 | D141: =TRANSPOSE(Outputs!C47:G47) -> 0.8148885984
B142: Powerco | C142: 0.8712376753 | D142: 0.8389614383
B143: Vector | C143: 0.5999520724 | D143: 0.6593505936
B144: First Gas distribution | C144: 0.846556341 | D144: 0.6934935207
B145: First Gas transmission | C145: 0.750509227 | D145: 0.7507305755
A147: Transmission Determination Tables & Values
B149: Schedule 9: Transitional Adjusted Asset Life
C150: Value | D150: Decimal places
B151: Transitional adjusted asset life | C151: =Outputs!G53 -> 16.61507725 | D151: 2
B153: Schedule 10: Total depreciation
C154: Value | D154: Decimal places
B155: Total depreciation, $m | C155: =Outputs!G54/1000 -> 219.8490516 | D155: 2
A157: Distribution Determination Tables & Values
B159: Schedule 6: Transitional Adjusted Asset Life
C160: Transitional adjusted asset life | D160: Decimal places
B161: =B110 -> GasNet Limited | C161: =TRANSPOSE(Outputs!C53:G53) -> 20.02579789 | D161: 2
B162: =B111 -> Powerco Limited | C162: 17.74729207 | D162: 2
B163: =B112 -> Vector Limited | C163: 20.57386876 | D163: 2
B164: =B113 -> First Gas Limited | C164: 17.28045114 | D164: 2
B166: Schedule 7: Total depreciation
C167: Total depreciation, $m | D167: Decimal places
B168: =B161 -> GasNet Limited | C168: =Outputs!C54/1000 -> 5.298076577 | D168: 2
B169: =B162 -> Powerco Limited | C169: =Outputs!D54/1000 -> 95.26200229 | D169: 2
B170: Vector Limited | C170: =Outputs!E54/1000 -> 94.0168762 | D170: 2
B171: First Gas Limited | C171: =Outputs!F54/1000 -> 44.21801463 | D171: 2

Sheet Notes
A1: Model notes
A3: Ref # | B3: Description | C3: Calculation method | D3: Input methodology reference, rationale, reference or other justification for the calculation method
A5: BBAR sheet
A6: 1 | B6: Proportion of BBAR year in the regulatory period | C6: Number of BBAR months in the regulatory period / 12 | D6: Standard calculation for a proportion.
A7: =A6+1 -> 2 | B7: Cumulative number of days from start of regulatory period to end of BBAR period | C7: Zero in the gap year, otherwise equals the previous year's value + Number of BBAR days in the BBAR period | D7: Standard calculation for a cumulative value
A8: =A7+1 -> 3 | B8: PV factor from end of each BBAR period | C8: (1+WACC)^(-1*Cumulative number of days from start of regulatory period to end of BBAR period/365) | D8: Standard present value formula for the present value factor for a period of "n" years.
A9: 4 | B9: Asset base scaling factor | C9: Aggregate opening RAB value in each BBAR period / Aggregate opening RAB value in the base year | D9: IM paragraph 4.4.9(2) sets the TCSD allowance at a × b ÷ c. The asset base scaling factor is the b ÷ c in this formula.
A10: 5 | B10: Term credit spread differential allowance | C10: Term credit spread differential allowance * Asset base scaling factor | D10: TCSD allowance is calculated according to IM 4.4.9(2) by this formula. See definition of the asset base scaling factor above.
A11: 6 | B11: Opening investment value (full BBAR year values) | C11: Opening RAB + if the tax allowance is on a deferred tax basis, add the deferred tax balance, otherwise do not add anything to the RAB. | D11: Note that while this is according to the IMs, it is in part used for some calculations not covered by the IMs.
A12: 7 | B12: Opening investment value at the start of the regulatory period | C12: Opening value at the start of the regulatory period calculated by linear interpolation of the values at the opening and closing of the first BBAR year.
A13: =A11+1 -> 7 | B13: =BBAR!A40 -> Closing investment value, end of 5th BBAR year | C13: Closing RAB plus, if a deferred tax approach is being applied, the closing deferred tax
A14: =A12+1 -> 8 | B14: Closing investment value at the end of the regulatory period | C14: Closing value at the end of the regulatory period calculated by linear interpolation of the values at the opening and closing of the last BBAR year.
A15: 9 | B15: Opening investment value at the start of each BBAR period | C15: ="Opening value at the start of each full 12 month BBAR year, except for the first BBAR period, for which the opening value is the interpolated value as described at Item " & A12 & " above" -> Opening value at the start of each full 12 month BBAR year, except for the first BBAR period, for which the opening value is the interpolated value as described at Item 7 above | D15: Simple reference, except that the first year formula is different
A16: 10 | B16: Pro-rata of an annual value into the value for a part-year by multiplying by the proportion of the length of the part year to a full year | C16: Multiply the annual value by the proportion of BBAR year in the regulatory period
A17: 11 | B17: Change in deferred tax | C17: Difference between the closing and opening deferred tax for the full BBAR year | D17: Sign convention adopted is positive value indicates an increase, and positive deferred tax balance is an asset for the supplier. This is implicit in the tax input methodology.
A18: 12 | B18: WACC adjusted for full and part years | C18: (1+WACC)^(-1*Number of days in the BBAR period/365)-1
A19: 13 | B19: Return on capital | C19: Regulatory investment value * WACC plus value of additional assets * (mid-year timing factor -1) plus TCSD less revaluations | D19: See paragraph 34 of Attachment A of the model specification.
A20: 14 | B20: BBAR before tax in revenue date terms, calculation not referencing tax, deferred tax approach | C20: BBAR formula per Attachment A, Equation 14 of the model specification | D20: Attachment A to the model specification contains an algebraic derivation of a formula that calculates the BBAR from a number of variables. See Equation 14 for the deferred tax case, and Attachment B Equation 26 for the tax payable case. The variables do not include the tax allowance or the BBAR itself, and so breaks a circularity that could otherwise exist in calculating both the tax allowance and BBAR.
A21: 15 | B21: Regulatory tax allowance before considering possibility of tax losses | C21: Regulatory net taxable income * corporate tax rate | D21: See Attachment A, Equation 5. Developed as a formula from IM provisions.
A22: 16 | B22: Regulatory tax allowance | C22: Regulatory tax allowance multiplied by the tax rate, except that if regulatory taxable income is negative (which is not expected to occur), then the #N/A error value shall be returned, which will poison all dependent formulas to all levels with #N/A to alert the workbook user to the tax loss issue. | D22: This approach allows some simplification of the financial model. In effect we assume tax losses arise for no supplier in any BBAR period. In the event of tax losses occurring they will be flagged by the "poisoning" of the results. Note that the derivation of the BBAR formula in the attachments to the model specification relies on no tax losses arising.
A23: 17 | B23: BBAR before tax in period-end terms, direct simple calculation, deferred tax approach | C23: BBAR formula per Attachment A, Equation 10 of the model specification | D23: See Attachment A. Developed as a formula from the NPV=0 equation.
A24: 18 | B24: BBAR before tax in revenue date terms | C24: BBAR in year end terms divided by the revenue timing factor to determine BBAR in revenue date terms | D24: Formula, as discussed in the model specification, for adjusting from a year-end value to a cash flow date value
A25: 19 | B25: Difference between the two BBAR calculations | C25: ="Difference between the BBAR calculated using the formula that does not reference tax and the BBAR formula that does reference tax." -> Difference between the BBAR calculated using the formula that does not reference tax and the BBAR formula that does reference tax. | D25: The difference should be zero. This a check value to flag potential errors in the calculation of BBAR.
A26: 20 | B26: Depreciation temporary differences, tax payable approach | D26: IM reference 4.3.3(1)
A27: 21 | B27: BBAR before tax in revenue date terms, calculation not referencing tax, tax payable approach | C27: BBAR formula per Attachment B of the model specification | D27: Attachment B to the model specification contains an algebraic derivation of a formula that calculates the BBAR from a number of variables. See Equation 26. These variables do not include the tax allowance or the BBAR itself, and so breaks a circularity that could otherwise exist in calculating both the tax allowance and BBAR.
A28: 22 | B28: BBAR before tax in period-end terms, direct simple calculation, tax payable approach | C28: BBAR formula per Attachment B, Equation 24 of the model specification | D28: See Attachment B. Developed as a formula from the NPV=0 equation.
A29: 23 | B29: Regulatory tax allowance before considering possibility of tax losses | C29: Regulatory tax allowance before considering possibility of tax losses | D29: See Attachment B, Equation 19. Developed as a formula from IM provisions.
A30: 24 | B30: Formula for selecting between outputs that are dependent upon choice of tax approach | C30: Formula used for four tax parameters that depend upon whether a deferred tax or a tax payable approach is used.
A31: 25 | B31: Tax allowance in period-end terms | C31: Formula used for tax allowance, according to whether a deferred tax or a tax payable approach is used. Multiplied by the tax timing factor for the BBAR period to produce the BBAR in BBAR period-end terms
A32: 26 | B32: Tax payable amount. selecting between outputs that are dependent upon choice of tax approach and provides formula for one of them. Needs tidying. | C32: Formula for tax payable, that depends upon whether a deferred tax or a tax payable approach is used. If deferred tax, then tax payable is calculated as the tax allowance plus the increase in deferred tax | D32: If the tax payable approach is used, then the tax payable cash flow is the tax allowance. If the deferred tax approach is used then (per Equation 7 of Attachment A of the model specification), tax payable is the tax allowance plus the increase in deferred tax.
A33: 27 | B33: PV at 30-Sep-22 of each full year's BBAR before tax | C33: BBAR before tax in year-end terms x PV factor from end of each BBAR period to the start of the regulatory period | D33: Present values the BBAR period-end value to the start of the regulatory period
A34: 28 | B34: PV at 30-Sep-22 of BBAR before tax | C34: Simple sum of the series of present values for each BBAR
A36: REV sheet
A37: 100 | B37: Index of cumulative CPI-X changes | C37: equals 1 for first year of reg period, thereafter equals previous year's value x (1+∆CPI)(1-X)
A38: =A37+1 -> 101 | B38: Index of constant price growth | C38: equals 1 for first year of reg period, thereafter equals previous year's value x (1+CPRG)
A39: =A38+1 -> 102 | B39: Indexed maximum allowable revenue before tax | C39: If a WAPC applies, then this index is the index of cumulative CPI-X changes multiplied by the index of constant price revenue growth. If a revenue cap applies, then this index is equal to the index of cumulative CPI-X changes.
A41: MAR sheet
A42: 110 | B42: PV as at 30 Sep 2022 of maximum allowable revenue before tax | C42: The present value of BBARs plus any additional allowance
A43: =A42+1 -> 111 | B43: Present value, as at 30-9-22, of the indexed MAR of each assessment year | C43: Each year's index of MAR, expressed as a year-end value divided by the (1+WACC) to the power of the number of years
A44: =A43+1 -> 112 | B44: Total present value, as at 30-9-22, of all the MAR indices of the 5 pricing years | C44: Simple sum of each of the 5 individual year present values
A45: 113 | B45: Formula for calculating the MAR for the first year of the regulatory period | C45: Equal to the total present value of BBAR, plus any 'additional allowance', all divided by the present value of the indexed revenue
A46: 114 | B46: Maximum allowable revenue before tax in year-end terms | C46: Indexed MAR scaled up such that the first year MAR equals its calculated value
A47: 115 | B47: Maximum allowable revenue before tax in revenue-date terms | C47: Maximum allowable revenue before tax in year-end terms divided by the revenue timing factor
A48: 116 | B48: For each assessment year, the PV as at 30 Sep 2022 of maximum allowable revenue before tax in year-end terms | C48: Each year's MAR, expressed as a year-end value divided by the (1+ the discount rate) to the power of the number of years
A49: 117 | B49: PV at 30 Sep 2022 of maximum allowable revenue before tax | C49: Simple sum of each of the 5 individual year present values
A50: 118 | B50: Error check for PV equivalence (should = 0) | C50: The present value of BBARs plus any additional allowance compared with the present value of MARs, all as at 30-9-22
A51: 119 | B51: ΔD | C51: 1 plus CPRG for the first assessment year multiplied by the same parameter for the prior year. Not applicable if pure revenue cap applies, in which case #N/A is returned. | D51: ∆D is effectively the conversion factor between MAR and allowable notional revenue. Takes into account the change in quantities during the lag period in the WAPC.
A52: 120 | B52: ANR 2023 | C52: MAR for the assessment year ending 2023 divided by ∆D
A56: Ref # | B56: Name used in input methodologies | C56: Name used within the financial model | D56: Comments
B57: Forecast aggregate value of disposed assets | C57: Value of disposed assets
B58: Aggregate closing RAB value for existing assets | C58: Closing RAB value for existing assets
